Workbook

Sheet MENU
A6: C1
A7: =LEFT(C7,4) -> 
A10: C5. | C10: C5. ELECTORES POR PAÍS DE ORIGEN
C25: Observaciones al
C26: correo electrónico: dejecutiva@tse.go.cr
A27: =LEFT(C27,4) -> 

Sheet 1
A1: CUADRO 1
A2: COSTA RICA: TOTAL Y VARIACIÓN DEL ELECTORADO
A3: ENTRE FEBRERO DE 2018 Y DICIEMBRE DE 2018
A4: SEGÚN PROVINCIA Y SEXO
A6: Provincia y sexo | B6: Padrón Nacional Electoral | E6: Variación
B7: Febrero 2018 | C7: Diciembre 2018 | E7: Absoluto | F7: Porcentaje
A9: Costa Rica | B9: =B13+B17+B21+B25+B29+B33+B37+B41 -> 3322329 | C9: =C13+C17+C21+C25+C29+C33+C37+C41 -> 3384720 | E9: =C9-B9 -> 62391 | F9: =E9/B9*100 -> 1.877929609
A10: Hombres | B10: 1655105 | C10: 1685453 | E10: =C10-B10 -> 30348 | F10: =E10/B10*100 -> 1.833599681
A11: Mujeres | B11: 1667224 | C11: 1699267 | E11: =C11-B11 -> 32043 | F11: =E11/B11*100 -> 1.921937304
A13: San José | B13: =SUM(B14:B15) -> 1114779 | C13: =+C14+C15 -> 1127925 | E13: =C13-B13 -> 13146 | F13: =E13/B13*100 -> 1.179247187
A14: Hombres | B14: 543289 | C14: 549379 | E14: =C14-B14 -> 6090 | F14: =E14/B14*100 -> 1.12095036
A15: Mujeres | B15: 571490 | C15: 578546 | E15: =C15-B15 -> 7056 | F15: =E15/B15*100 -> 1.234667273
A17: Alajuela | B17: =+B18+B19 -> 630990 | C17: =+C18+C19 -> 645313 | E17: =C17-B17 -> 14323 | F17: =E17/B17*100 -> 2.269925038
A18: Hombres | B18: 318070 | C18: 325249 | E18: =C18-B18 -> 7179 | F18: =E18/B18*100 -> 2.257050335
A19: Mujeres | B19: 312920 | C19: 320064 | E19: =C19-B19 -> 7144 | F19: =E19/B19*100 -> 2.283011632
A21: Cartago | B21: =+B22+B23 -> 387905 | C21: =+C22+C23 -> 394101 | E21: =C21-B21 -> 6196 | F21: =E21/B21*100 -> 1.597298308
A22: Hombres | B22: 192700 | C22: 195726 | E22: =C22-B22 -> 3026 | F22: =E22/B22*100 -> 1.570316554
A23: Mujeres | B23: 195205 | C23: 198375 | E23: =C23-B23 -> 3170 | F23: =E23/B23*100 -> 1.623933813
A25: Heredia | B25: =+B26+B27 -> 332859 | C25: =+C26+C27 -> 339262 | E25: =C25-B25 -> 6403 | F25: =E25/B25*100 -> 1.923637336
A26: Hombres | B26: 163675 | C26: 166972 | E26: =C26-B26 -> 3297 | F26: =E26/B26*100 -> 2.014357721
A27: Mujeres | B27: 169184 | C27: 172290 | E27: =C27-B27 -> 3106 | F27: =E27/B27*100 -> 1.835871004
A29: Guanacaste | B29: =+B30+B31 -> 240637 | C29: =+C30+C31 -> 245992 | E29: =C29-B29 -> 5355 | F29: =E29/B29*100 -> 2.225343567
A30: Hombres | B30: 121354 | C30: 123993 | E30: =C30-B30 -> 2639 | F30: =E30/B30*100 -> 2.174629596
A31: Mujeres | B31: 119283 | C31: 121999 | E31: =C31-B31 -> 2716 | F31: =E31/B31*100 -> 2.276938038
A33: Puntarenas | B33: =+B34+B35 -> 310662 | C33: =+C34+C35 -> 316832 | E33: =C33-B33 -> 6170 | F33: =E33/B33*100 -> 1.986081336
A34: Hombres | B34: 159033 | C34: 162007 | E34: =C34-B34 -> 2974 | F34: =E34/B34*100 -> 1.870052128
A35: Mujeres | B35: 151629 | C35: 154825 | E35: =C35-B35 -> 3196 | F35: =E35/B35*100 -> 2.107776217
A37: Limón | B37: =+B38+B39 -> 272633 | C37: =+C38+C39 -> 278657 | E37: =C37-B37 -> 6024 | F37: =E37/B37*100 -> 2.209563773
A38: Hombres | B38: 140456 | C38: 143151 | E38: =C38-B38 -> 2695 | F38: =E38/B38*100 -> 1.918750356
A39: Mujeres | B39: 132177 | C39: 135506 | E39: =C39-B39 -> 3329 | F39: =E39/B39*100 -> 2.518592493
A41: En el extranjero 1/ | B41: =+B42+B43 -> 31864 | C41: =+C42+C43 -> 36638 | E41: =C41-B41 -> 4774 | F41: =E41/B41*100 -> 14.98242531
A42: Hombres | B42: 16528 | C42: 18976 | E42: =C42-B42 -> 2448 | F42: =E42/B42*100 -> 14.81122943
A43: Mujeres | B43: 15336 | C43: 17662 | E43: =C43-B43 -> 2326 | F43: =E43/B43*100 -> 15.16692749
A46: 1/ Costarricenses inscritos(as) que pueden ejercer el voto en extranjero para designar los puestos de Presidencia y Vicepresidencias, así como en consultas populares de orden nacional, según el artículo 187 del Código Electoral.
A48: Fuente: Sección Padrón Electoral del Tribunal Supremo de Elecciones.

Sheet 2
A1: CUADRO 2
A2: COSTA RICA: ELECTORADO EN EL PADRÓN PARA LAS ELECCIONES DE
A3: FEBRERO 2018 Y EN EL PADRÓN AL 31 DE DICIEMBRE DE 2018
A4: POR SEXO, SEGÚN PROVINCIA Y CANTÓN
A6: Provincia y cantón | B6: Padrón Nacional Electoral
B7: Febrero 2018 | F7: Diciembre 2018
B8: Total | C8: Hombres | D8: Mujeres | F8: Total | G8: Hombres | H8: Mujeres
A9: Costa Rica | B9: =SUM(B10:B17) -> 3322329 | C9: =SUM(C10:C17) -> 1655105 | D9: =SUM(D10:D17) -> 1667224 | E9: =E18+E39+E56+E65+E76+E88+E100 -> 0 | F9: =F18+F39+F56+F65+F76+F88+F100+F107 -> 3384720 | G9: =G18+G39+G56+G65+G76+G88+G100+G107 -> 1685453 | H9: =H18+H39+H56+H65+H76+H88+H100+H107 -> 1699267
A10: San José | B10: =B18 -> 1114779 | C10: 543289 | D10: 571490 | E10: 0 | F10: 1127925 | G10: 549379 | H10: 578546
A11: Alajuela | B11: =B39 -> 630990 | C11: 318070 | D11: 312920 | E11: 0 | F11: 645313 | G11: 325249 | H11: 320064
A12: Cartago | B12: =B56 -> 387905 | C12: 192700 | D12: 195205 | E12: 0 | F12: 394101 | G12: 195726 | H12: 198375
A13: Heredia | B13: =B65 -> 332859 | C13: 163675 | D13: 169184 | E13: 0 | F13: 339262 | G13: 166972 | H13: 172290
A14: Guanacaste | B14: =B76 -> 240637 | C14: 121354 | D14: 119283 | E14: 0 | F14: 245992 | G14: 123993 | H14: 121999
A15: Puntarenas | B15: =B88 -> 310662 | C15: 159033 | D15: 151629 | E15: 0 | F15: 316832 | G15: 162007 | H15: 154825
A16: Limón | B16: =B100 -> 272633 | C16: 140456 | D16: 132177 | E16: 0 | F16: 278657 | G16: 143151 | H16: 135506
A17: En el extranjero 1/ | B17: =B107 -> 31864 | C17: =C107 -> 16528 | D17: =D107 -> 15336 | F17: =F107 -> 36638 | G17: =G107 -> 18976 | H17: =H107 -> 17662
A18: San José | B18: =SUM(C18:D18) -> 1114779 | C18: =SUM(C19:C38) -> 543289 | D18: =SUM(D19:D38) -> 571490 | F18: =SUM(F19:F38) -> 1127925 | G18: =SUM(G19:G38) -> 549379 | H18: =SUM(H19:H38) -> 578546
A19: San José | B19: =+C19+D19 -> 234558 | C19: 113514 | D19: 121044 | F19: =SUM(G19:H19) -> 235870 | G19: 113960 | H19: 121910
A20: Escazú | B20: 46971 | C20: 22957 | D20: 24014 | F20: 47857 | G20: 23411 | H20: 24446
A21: Desamparados | B21: 160243 | C21: 78427 | D21: 81816 | F21: 162267 | G21: 79475 | H21: 82792
A22: Puriscal | B22: 28424 | C22: 14235 | D22: 14189 | F22: 28845 | G22: 14433 | H22: 14412
A23: Tarrazú | B23: 12188 | C23: 6119 | D23: 6069 | F23: 12333 | G23: 6172 | H23: 6161
A24: Aserrí | B24: 42853 | C24: 21439 | D24: 21414 | F24: 43529 | G24: 21785 | H24: 21744
A25: Mora | B25: 21361 | C25: 10503 | D25: 10858 | F25: 21919 | G25: 10804 | H25: 11115
A26: Goicoechea | B26: 90058 | C26: 43176 | D26: 46882 | F26: 90757 | G26: 43488 | H26: 47269
A27: Santa Ana | B27: 35074 | C27: 17130 | D27: 17944 | F27: 36124 | G27: 17651 | H27: 18473
A28: Alajuelita | B28: 50373 | C28: 24920 | D28: 25453 | F28: 51223 | G28: 25379 | H28: 25844
A29: Vázquez de Coronado | B29: 53496 | C29: 25783 | D29: 27713 | F29: 54443 | G29: 26227 | H29: 28216
A30: Acosta | B30: 16608 | C30: 8504 | D30: 8104 | F30: 16924 | G30: 8647 | H30: 8277
A31: Tibás | B31: 55965 | C31: 26235 | D31: 29730 | F31: 56225 | G31: 26308 | H31: 29917
A32: Moravia | B32: 44209 | C32: 21149 | D32: 23060 | F32: 44618 | G32: 21338 | H32: 23280
A33: Montes de Oca | B33: 42391 | C33: 19898 | D33: 22493 | F33: 42741 | G33: 20085 | H33: 22656
A34: Turrubares | B34: 4593 | C34: 2358 | D34: 2235 | F34: 4636 | G34: 2388 | H34: 2248
A35: Dota | B35: 5566 | C35: 2786 | D35: 2780 | F35: 5610 | G35: 2800 | H35: 2810
A36: Curridabat | B36: 48859 | C36: 23440 | D36: 25419 | F36: 49572 | G36: 23756 | H36: 25816
A37: Pérez Zeledón | B37: 111779 | C37: 56046 | D37: 55733 | F37: 113168 | G37: 56588 | H37: 56580
A38: León Cortés Castro | B38: 9210 | C38: 4670 | D38: 4540 | F38: 9264 | G38: 4684 | H38: 4580
A39: Alajuela | B39: =SUM(B40:B54) -> 630990 | C39: =SUM(C40:C54) -> 318070 | D39: =SUM(D40:D54) -> 312920 | F39: =SUM(G39:H39) -> 645313 | G39: =SUM(G40:G55) -> 325249 | H39: =SUM(H40:H55) -> 320064
A40: Alajuela | B40: =+C40+D40 -> 201480 | C40: 101525 | D40: 99955 | F40: 206178 | G40: 104123 | H40: 102055
A41: San Ramón | B41: 63586 | C41: 31682 | D41: 31904 | F41: 65150 | G41: 32372 | H41: 32778
A42: Grecia | B42: 59285 | C42: 29510 | D42: 29775 | F42: 54331 | G42: 26871 | H42: 27460
A43: San Mateo | B43: 4602 | C43: 2370 | D43: 2232 | F43: 4671 | G43: 2408 | H43: 2263
A44: Atenas | B44: 20429 | C44: 10228 | D44: 10201 | F44: 20780 | G44: 10423 | H44: 10357
A45: Naranjo | B45: 31782 | C45: 15775 | D45: 16007 | F45: 32181 | G45: 15914 | H45: 16267
A46: Palmares | B46: 28973 | C46: 14326 | D46: 14647 | F46: 29247 | G46: 14462 | H46: 14785
A47: Poás | B47: 21821 | C47: 10913 | D47: 10908 | F47: 22299 | G47: 11148 | H47: 11151
A48: Orotina | B48: 15594 | C48: 7829 | D48: 7765 | F48: 15968 | G48: 7995 | H48: 7973
A49: San Carlos | B49: 108240 | C49: 55144 | D49: 53096 | F49: 110978 | G49: 56464 | H49: 54514
A50: Zarcero | B50: 9056 | C50: 4469 | D50: 4587 | F50: 9154 | G50: 4522 | H50: 4632
A51: Valverde Vega | B51: 14668 | C51: 7312 | D51: 7356 | F51: 14860 | G51: 7443 | H51: 7417
A52: Upala | B52: 28352 | C52: 14765 | D52: 13587 | F52: 29422 | G52: 15264 | H52: 14158
A53: Los Chiles | B53: 12152 | C53: 6524 | D53: 5628 | F53: 12705 | G53: 6794 | H53: 5911
A54: Guatuso | B54: 10970 | C54: 5698 | D54: 5272 | F54: 11237 | G54: 5828 | H54: 5409
A55: Río Cuarto | B55: n.a | C55: n.a | D55: n.a | F55: 6152 | G55: 3218 | H55: 2934
A56: Cartago | B56: =SUM(B57:B64) -> 387905 | C56: =SUM(C57:C64) -> 192700 | D56: =SUM(D57:D64) -> 195205 | F56: 394101 | G56: =SUM(G57:G64) -> 195726 | H56: =SUM(H57:H64) -> 198375
A57: Cartago | B57: =+C57+D57 -> 121426 | C57: 59857 | D57: 61569 | F57: 123400 | G57: 60828 | H57: 62572
A58: Paraíso | B58: 46757 | C58: 23197 | D58: 23560 | F58: 47512 | G58: 23600 | H58: 23912
A59: La Unión | B59: 70313 | C59: 34646 | D59: 35667 | F59: 71628 | G59: 35282 | H59: 36346
A60: Jiménez | B60: 12064 | C60: 6158 | D60: 5906 | F60: 12227 | G60: 6203 | H60: 6024
A61: Turrialba | B61: 57210 | C61: 28541 | D61: 28669 | F61: 57836 | G61: 28890 | H61: 28946
A62: Alvarado | B62: 10590 | C62: 5295 | D62: 5295 | F62: 10855 | G62: 5417 | H62: 5438
A63: Oreamuno | B63: 36202 | C63: 17817 | D63: 18385 | F63: 36701 | G63: 18087 | H63: 18614
A64: El Guarco | B64: 33343 | C64: 17189 | D64: 16154 | F64: 33942 | G64: 17419 | H64: 16523
A65: Heredia | B65: =SUM(B66:B75) -> 332859 | C65: =SUM(C66:C75) -> 163675 | D65: =SUM(D66:D75) -> 169184 | F65: =SUM(G65:H65) -> 339262 | G65: =SUM(G66:G75) -> 166972 | H65: =SUM(H66:H75) -> 172290
A66: Heredia | B66: =+C66+D66 -> 96661 | C66: 46371 | D66: 50290 | F66: 98074 | G66: 47103 | H66: 50971
A67: Barva | B67: 32786 | C67: 16058 | D67: 16728 | F67: 33371 | G67: 16386 | H67: 16985
A68: Santo Domingo | B68: 34421 | C68: 16941 | D68: 17480 | F68: 34913 | G68: 17150 | H68: 17763
A69: Santa Bárbara | B69: 26746 | C69: 13268 | D69: 13478 | F69: 27265 | G69: 13531 | H69: 13734
A70: San Rafael | B70: 35395 | C70: 17629 | D70: 17766 | F70: 36204 | G70: 18039 | H70: 18165
A71: San Isidro | B71: 16081 | C71: 8055 | D71: 8026 | F71: 16392 | G71: 8243 | H71: 8149
A72: Belén | B72: 18745 | C72: 9226 | D72: 9519 | F72: 19050 | G72: 9389 | H72: 9661
A73: Flores | B73: 16683 | C73: 8087 | D73: 8596 | F73: 17100 | G73: 8285 | H73: 8815
A74: San Pablo | B74: 21950 | C74: 10596 | D74: 11354 | F74: 22366 | G74: 10813 | H74: 11553
A75: Sarapiquí | B75: 33391 | C75: 17444 | D75: 15947 | F75: 34527 | G75: 18033 | H75: 16494
A76: Guanacaste | B76: =SUM(B77:B87) -> 240637 | C76: =SUM(C77:C87) -> 121354 | D76: =SUM(D77:D87) -> 119283 | F76: 245992 | G76: =SUM(G77:G87) -> 123993 | H76: =SUM(H77:H87) -> 121999
A77: Liberia | B77: =+C77+D77 -> 44938 | C77: 22492 | D77: 22446 | F77: 46143 | G77: 23044 | H77: 23099
A78: Nicoya | B78: 40987 | C78: 20606 | D78: 20381 | F78: 41827 | G78: 21033 | H78: 20794
A79: Santa Cruz | B79: 41107 | C79: 20895 | D79: 20212 | F79: 41912 | G79: 21317 | H79: 20595
A80: Bagaces | B80: 13686 | C80: 6876 | D80: 6810 | F80: 14073 | G80: 7077 | H80: 6996
A81: Carrillo | B81: 24283 | C81: 12280 | D81: 12003 | F81: 24979 | G81: 12618 | H81: 12361
A82: Cañas | B82: 19476 | C82: 9750 | D82: 9726 | F82: 19752 | G82: 9863 | H82: 9889
A83: Abangares | B83: 13610 | C83: 6933 | D83: 6677 | F83: 13812 | G83: 7033 | H83: 6779
A84: Tilarán | B84: 15049 | C84: 7514 | D84: 7535 | F84: 15259 | G84: 7626 | H84: 7633
A85: Nandayure | B85: 8464 | C85: 4341 | D85: 4123 | F85: 8506 | G85: 4361 | H85: 4145
A86: La Cruz | B86: 13023 | C86: 6593 | D86: 6430 | F86: 13647 | G86: 6904 | H86: 6743
A87: Hojancha | B87: 6014 | C87: 3074 | D87: 2940 | F87: 6082 | G87: 3117 | H87: 2965
A88: Puntarenas | B88: =SUM(B89:B99) -> 310662 | C88: =SUM(C89:C99) -> 159033 | D88: =SUM(D89:D99) -> 151629 | F88: 316832 | G88: =SUM(G89:G99) -> 162007 | H88: =SUM(H89:H99) -> 154825
A89: Puntarenas | B89: =+C89+D89 -> 86571 | C89: 44277 | D89: 42294 | F89: 87844 | G89: 44865 | H89: 42979
A90: Esparza | B90: 22598 | C90: 11197 | D90: 11401 | F90: 23047 | G90: 11418 | H90: 11629
A91: Buenos Aires | B91: 31975 | C91: 16618 | D91: 15357 | F91: 32385 | G91: 16801 | H91: 15584
A92: Montes de Oro | B92: 10241 | C92: 5115 | D92: 5126 | F92: 10374 | G92: 5179 | H92: 5195
A93: Osa | B93: 22210 | C93: 11678 | D93: 10532 | F93: 22840 | G93: 12012 | H93: 10828
A94: Quepos | B94: 19595 | C94: 10367 | D94: 9228 | F94: 20108 | G94: 10631 | H94: 9477
A95: Golfito | B95: 29563 | C95: 15292 | D95: 14271 | F95: 30236 | G95: 15593 | H95: 14643
A96: Coto Brus | B96: 29923 | C96: 15075 | D96: 14848 | F96: 30632 | G96: 15428 | H96: 15204
A97: Parrita | B97: 12052 | C97: 6225 | D97: 5827 | F97: 12312 | G97: 6339 | H97: 5973
A98: Corredores | B98: 34163 | C98: 17044 | D98: 17119 | F98: 34788 | G98: 17345 | H98: 17443
A99: Garabito | B99: 11771 | C99: 6145 | D99: 5626 | F99: 12266 | G99: 6396 | H99: 5870
A100: Limón | B100: =SUM(B101:B106) -> 272633 | C100: =SUM(C101:C106) -> 140456 | D100: =SUM(D101:D106) -> 132177 | F100: 278657 | G100: =SUM(G101:G106) -> 143151 | H100: =SUM(H101:H106) -> 135506
A101: Limón | B101: =+C101+D101 -> 68866 | C101: 34537 | D101: 34329 | F101: 69962 | G101: 35024 | H101: 34938
A102: Pococí | B102: 92004 | C102: 47930 | D102: 44074 | F102: 93892 | G102: 48688 | H102: 45204
A103: Siquirres | B103: 40171 | C103: 20896 | D103: 19275 | F103: 40838 | G103: 21197 | H103: 19641
A104: Talamanca | B104: 20870 | C104: 10891 | D104: 9979 | F104: 21816 | G104: 11381 | H104: 10435
A105: Matina | B105: 21862 | C105: 11387 | D105: 10475 | F105: 22466 | G105: 11702 | H105: 10764
A106: Guácimo | B106: 28860 | C106: 14815 | D106: 14045 | F106: 29683 | G106: 15159 | H106: 14524
A107: En el extranjero 1/ | B107: =SUM(C107:D107) -> 31864 | C107: 16528 | D107: 15336 | F107: =SUM(G107:H107) -> 36638 | G107: 18976 | H107: 17662
A110: 1/ Costarricenses inscritos(as) que pueden ejercer el voto en extranjero para designar los puestos de Presidencia y Vicepresidencias, así como en consultas populares de orden nacional, según el artículo 187 del Código Electoral.
A111: Fuente: Sección Padrón Electoral del Tribunal Supremo de Elecciones.

Sheet 3
A1: CUADRO 3
A2: COSTA RICA: ELECTORADO POR PROVINCIA, SEGÚN SEXO Y
A3: GRUPO DE EDAD, AL 31 DE DICIEMBRE DE 2018
A5: Sexo y grupo de edad 1/ | B5: Total | C5: San José | D5: Alajuela | E5: Cartago | F5: Heredia | G5: Guanacaste | H5: Puntarenas | I5: Limón | J5: En el extranjero 2/
A7: Costa Rica | B7: =B25+B43 -> 3384720 | C7: =C25+C43 -> 1127925 | D7: 645313 | E7: 394101 | F7: 339262 | G7: 245992 | H7: 316832 | I7: 278657 | J7: 36638
A8: 16 - 19 | B8: =B26+B44 -> 148811 | C8: 45619 | D8: 29837 | E8: 16978 | F8: 14231 | G8: 11442 | H8: 15285 | I8: 14792 | J8: 627
A9: 20 - 24 | B9: =B27+B45 -> 384812 | C9: 120445 | D9: 75598 | E9: 44279 | F9: 36552 | G9: 29277 | H9: 38310 | I9: 37242 | J9: 3109
A10: 25 - 29 | B10: 394349 | C10: 127600 | D10: 77031 | E10: 46865 | F10: 38323 | G10: 28726 | H10: 37589 | I10: 35071 | J10: 3144
A11: 30 - 34 | B11: 393670 | C11: 127939 | D11: 76685 | E11: 46583 | F11: 39116 | G11: 28159 | H11: 37179 | I11: 33605 | J11: 4404
A12: 35 - 39 | B12: 344699 | C12: 114773 | D12: 64125 | E12: 39872 | F12: 36256 | G12: 24835 | H12: 32202 | I12: 27461 | J12: 5175
A13: 40 - 44 | B13: 292506 | C13: 95686 | D13: 53707 | E13: 34726 | F13: 30881 | G13: 21382 | H13: 27500 | I13: 23954 | J13: 4670
A14: 45 - 49 | B14: 269542 | C14: 87426 | D14: 50346 | E14: 32599 | F14: 27391 | G14: 19369 | H14: 25691 | I14: 22756 | J14: 3964
A15: 50 - 54 | B15: 274941 | C15: 91285 | D15: 52547 | E15: 32992 | F15: 27589 | G15: 19698 | H15: 25598 | I15: 21629 | J15: 3603
A16: 55 - 59 | B16: 252629 | C16: 87303 | D16: 48271 | E16: 29290 | F16: 25639 | G16: 17679 | H16: 22513 | I16: 18972 | J16: 2962
A17: 60 - 64 | B17: 203578 | C17: 72469 | D17: 37605 | E17: 23059 | F17: 21034 | G17: 14273 | H17: 18005 | I17: 15150 | J17: 1983
A18: 65 - 69 | B18: 150754 | C18: 55006 | D18: 27549 | E18: 16593 | F18: 15516 | G18: 10665 | H18: 13256 | I18: 10792 | J18: 1377
A19: 70 - 74 | B19: 106354 | C19: 39334 | D19: 19946 | E19: 11690 | F19: 10606 | G19: 7639 | H19: 9241 | I19: 7158 | J19: 740
A20: 75 - 79 | B20: 73081 | C20: 26683 | D20: 14206 | E20: 8289 | F20: 7090 | G20: 5366 | H20: 6443 | I20: 4594 | J20: 410
A21: 80 - 84 | B21: 49098 | C21: 18370 | D21: 9305 | E21: 5452 | F21: 4698 | G21: 3758 | H21: 4264 | I21: 3014 | J21: 237
A22: 85 - 89 | B22: 28534 | C22: 11100 | D22: 5334 | E22: 3040 | F22: 2741 | G22: 2248 | H22: 2398 | I22: 1524 | J22: 149
A23: 90 y más | B23: 17362 | C23: 6887 | D23: 3221 | E23: 1794 | F23: 1599 | G23: 1476 | H23: 1358 | I23: 943 | J23: 84
A25: Hombres | B25: =SUM(C25:J25) -> 1685453 | C25: =SUM(C26:C41) -> 549379 | D25: =SUM(D26:D41) -> 325249 | E25: 195726 | F25: 166972 | G25: 123993 | H25: 162007 | I25: 143151 | J25: =SUM(J26:J41) -> 18976
A26: 16 - 19 | B26: =SUM(C26:J26) -> 75786 | C26: 23211 | D26: 15262 | E26: 8694 | F26: 7384 | G26: 5756 | H26: 7673 | I26: 7468 | J26: 338
A27: 20 - 24 | B27: =SUM(C27:J27) -> 196053 | C27: 61042 | D27: 38805 | E27: 22628 | F27: 18570 | G27: 14955 | H27: 19586 | I27: 18924 | J27: 1543
A28: 25 - 29 | B28: 201196 | C28: 64841 | D28: 39918 | E28: 23889 | F28: 19610 | G28: 14504 | H28: 19001 | I28: 17913 | J28: 1520
A29: 30 - 34 | B29: 199562 | C29: 64204 | D29: 39561 | E29: 23611 | F29: 19779 | G29: 14257 | H29: 18821 | I29: 16900 | J29: 2429
A30: 35 - 39 | B30: 173734 | C30: 57665 | D30: 32653 | E30: 19975 | F30: 18116 | G30: 12597 | H30: 16167 | I30: 13674 | J30: 2887
A31: 40 - 44 | B31: 146798 | C31: 47786 | D31: 27218 | E31: 17222 | F31: 15342 | G31: 10673 | H31: 13908 | I31: 12089 | J31: 2560
A32: 45 - 49 | B32: 134408 | C32: 42911 | D32: 25024 | E32: 15949 | F32: 13589 | G32: 9792 | H32: 13195 | I32: 11788 | J32: 2160
A33: 50 - 54 | B33: 136599 | C33: 44508 | D33: 26055 | E33: 16318 | F33: 13376 | G33: 9973 | H33: 13194 | I33: 11264 | J33: 1911
A34: 55 - 59 | B34: 124491 | C34: 41539 | D34: 24099 | E34: 14372 | F34: 12328 | G34: 8989 | H34: 11724 | I34: 9959 | J34: 1481
A35: 60 - 64 | B35: 99117 | C35: 33761 | D35: 18645 | E35: 11194 | F35: 9943 | G35: 7211 | H35: 9356 | I35: 8088 | J35: 919
A36: 65 - 69 | B36: 72515 | C36: 24897 | D36: 13664 | E36: 7886 | F36: 7220 | G36: 5374 | H36: 6963 | I36: 5886 | J36: 625
A37: 70 - 74 | B37: 50636 | C37: 17642 | D37: 9636 | E37: 5576 | F37: 4904 | G37: 3703 | H37: 4932 | I37: 3931 | J37: 312
A38: 75 - 79 | B38: 33976 | C38: 11549 | D38: 6757 | E38: 3906 | F38: 3143 | G38: 2635 | H38: 3346 | I38: 2481 | J38: 159
A39: 80 - 84 | B39: 21877 | C39: 7389 | D39: 4252 | E39: 2470 | F39: 2014 | G39: 1864 | H39: 2252 | I39: 1567 | J39: 69
A40: 85 - 89 | B40: 11972 | C40: 4156 | D40: 2352 | E40: 1331 | F40: 1091 | G40: 1043 | H40: 1179 | I40: 777 | J40: 43
A41: 90 y más | B41: 6733 | C41: 2278 | D41: 1348 | E41: 705 | F41: 563 | G41: 667 | H41: 710 | I41: 442 | J41: 20
A43: Mujeres | B43: =SUM(C43:J43) -> 1699267 | C43: =SUM(C44:C59) -> 578546 | D43: =SUM(D44:D59) -> 320064 | E43: 198375 | F43: 172290 | G43: 121999 | H43: 154825 | I43: 135506 | J43: =SUM(J44:J59) -> 17662
A44: 16 - 19 | B44: =SUM(C44:J44) -> 73025 | C44: 22408 | D44: 14575 | E44: 8284 | F44: 6847 | G44: 5686 | H44: 7612 | I44: 7324 | J44: 289
A45: 20 - 24 | B45: =SUM(C45:J45) -> 188759 | C45: 59403 | D45: 36793 | E45: 21651 | F45: 17982 | G45: 14322 | H45: 18724 | I45: 18318 | J45: 1566
A46: 25 - 29 | B46: 193153 | C46: 62759 | D46: 37113 | E46: 22976 | F46: 18713 | G46: 14222 | H46: 18588 | I46: 17158 | J46: 1624
A47: 30 - 34 | B47: 194108 | C47: 63735 | D47: 37124 | E47: 22972 | F47: 19337 | G47: 13902 | H47: 18358 | I47: 16705 | J47: 1975
A48: 35 - 39 | B48: 170965 | C48: 57108 | D48: 31472 | E48: 19897 | F48: 18140 | G48: 12238 | H48: 16035 | I48: 13787 | J48: 2288
A49: 40 - 44 | B49: 145708 | C49: 47900 | D49: 26489 | E49: 17504 | F49: 15539 | G49: 10709 | H49: 13592 | I49: 11865 | J49: 2110
A50: 45 - 49 | B50: 135134 | C50: 44515 | D50: 25322 | E50: 16650 | F50: 13802 | G50: 9577 | H50: 12496 | I50: 10968 | J50: 1804
A51: 50 - 54 | B51: 138342 | C51: 46777 | D51: 26492 | E51: 16674 | F51: 14213 | G51: 9725 | H51: 12404 | I51: 10365 | J51: 1692
A52: 55 - 59 | B52: =SUM(C52:J52) -> 128138 | C52: 45764 | D52: 24172 | E52: 14918 | F52: 13311 | G52: 8690 | H52: 10789 | I52: 9013 | J52: 1481
A53: 60 - 64 | B53: 104461 | C53: 38708 | D53: 18960 | E53: 11865 | F53: 11091 | G53: 7062 | H53: 8649 | I53: 7062 | J53: 1064
A54: 65 - 69 | B54: 78239 | C54: 30109 | D54: 13885 | E54: 8707 | F54: 8296 | G54: 5291 | H54: 6293 | I54: 4906 | J54: 752
A55: 70 - 74 | B55: 55718 | C55: 21692 | D55: 10310 | E55: 6114 | F55: 5702 | G55: 3936 | H55: 4309 | I55: 3227 | J55: 428
A56: 75 - 79 | B56: 39105 | C56: 15134 | D56: 7449 | E56: 4383 | F56: 3947 | G56: 2731 | H56: 3097 | I56: 2113 | J56: 251
A57: 80 - 84 | B57: 27221 | C57: 10981 | D57: 5053 | E57: 2982 | F57: 2684 | G57: 1894 | H57: 2012 | I57: 1447 | J57: 168
A58: 85 - 89 | B58: 16562 | C58: 6944 | D58: 2982 | E58: 1709 | F58: 1650 | G58: 1205 | H58: 1219 | I58: 747 | J58: 106
A59: 90 y más | B59: 10629 | C59: 4609 | D59: 1873 | E59: 1089 | F59: 1036 | G59: 809 | H59: 648 | I59: 501 | J59: 64
A62: 1/ Incluye las personas menores que tramitarán su cédula y cumplirán 18 años hasta el 2 de febrero de 2020 inclusive. Según el artículo 76 de la Ley 3504: "Ley Orgánica del Tribunal Supremo de Elecciones y del Registro Civil".
A63: 2/ Costarricenses inscritos(as) que pueden ejercer el voto en extranjero para designar los puestos de Presidencia y Vicepresidencias, así como en consultas populares de orden nacional, según el artículo 187 del Código Electoral.
A64: Fuente: Sección Padrón Electoral del Tribunal Supremo de Elecciones.

Sheet G1
H2: GRÁFICO 1
A3: POR MES, SEGÚN PROVINCIA Y SEXO, AL 31 DE DICIEMBRE DE 2018 | H3: COSTA RICA: PORCENTAJE DEL ELECTORADO, POR SEXO Y GRUPO DE EDAD
H4: AL 31 DE DICIEMBRE DE 2018
A6: GRUPOS DE EDAD | B6: ELECTORES | F6: PORCENTAJE
B7: Total | C7: Hombres | D7: Mujeres | E7: Sin lugar | F7: Hombres | G7: Mujeres
B9: 3384720 | C9: 1685453 | D9: 1699267
A11: Menos de 20 | B11: 148811 | C11: 75786 | D11: 73025 | F11: -4.496476615 | G11: 4.332663088
A12: 20 a 24 | B12: 384812 | C12: 196053 | D12: 188759 | F12: -11.63206568 | G12: 11.19930369
A13: 25 a 29 | B13: 394349 | C13: 201196 | D13: 193153 | F13: -11.9372062 | G13: 11.46000511
A14: 30 a 34 | B14: 393670 | C14: 199562 | D14: 194108 | F14: -11.84025897 | G14: 11.51666644
A15: 35 a 39 | B15: 344699 | C15: 173734 | D15: 170965 | F15: -10.30785195 | G15: 10.14356378
A16: 40 a 44 | B16: 292506 | C16: 146798 | D16: 145708 | F16: -8.709705937 | G16: 8.645034896
A17: 45 a 49 | B17: 269542 | C17: 134408 | D17: 135134 | F17: -7.974591994 | G17: 8.017666467
A18: 50 a 54 | B18: 274941 | C18: 136599 | D18: 138342 | F18: -8.104586719 | G18: 8.208001054
A19: 55 a 59 | B19: 252629 | C19: 124491 | D19: 128138 | F19: -7.386204184 | G19: 7.60258518
A20: 60 a 64 | B20: 203578 | C20: 99117 | D20: 104461 | F20: -5.880733548 | G20: 6.197799642
A21: 65 a 69 | B21: 150754 | C21: 72515 | D21: 78239 | F21: -4.302404161 | G21: 4.642016123
A22: 70 a 74 | B22: 106354 | C22: 50636 | D22: 55718 | F22: -3.004296174 | G22: 3.305817486
A23: 75 a 79 | B23: 73081 | C23: 33976 | D23: 39105 | F23: -2.015837879 | G23: 2.320147758
A24: 80 a 84 | B24: 49098 | C24: 21877 | D24: 27221 | F24: -1.297989324 | G24: 1.615055418
A25: 85 a 89 | B25: 28534 | C25: 11972 | D25: 16562 | F25: -0.7103134884 | G25: 0.9826438352
A26: 90 y más | B26: 17362 | C26: 6733 | D26: 10629 | F26: -0.3994771732 | G26: 0.6306316462
H30: Fuente: Cuadro 3.

Sheet 4
A1: CUADRO 4
A2: COSTA RICA: ELECTORADO EN EL PADRÓN INSCRITO EN EL EXTRANJERO1/
A3: POR SEXO, SEGÚN CONTINENTE Y PAÍS
A4: AL 31 DE DICIEMBRE DE 2018
A6: Continente y país | B6: Total | D6: Hombres | F6: Mujeres
B7: Absoluto | C7: % | D7: Absoluto | E7: % | F7: Absoluto | G7: %
A9: Total | B9: =B11+B36+B49+B60 -> 36638 | C9: =B9/B$9*100 -> 100 | D9: =D11+D36+D49+D60 -> 18976 | E9: =D9/D$9*100 -> 100 | F9: =F11+F36+F49+F60 -> 17662 | G9: =F9/F$9*100 -> 100
A11: América | B11: =D11+F11 -> 32711 | C11: =B11/B$9*100 -> 89.28162018 | D11: =SUM(D12:D34) -> 17177 | E11: =D11/D$9*100 -> 90.51960371 | F11: =SUM(F12:F34) -> 15534 | G11: =F11/F$9*100 -> 87.95153437
A12: Estados Unidos | B12: 25960 | C12: 70.85539604 | D12: 13872 | E12: 73.10286678 | F12: 12088 | G12: 68.44072019
A13: Canadá | B13: 1102 | C13: 3.007806103 | D13: 625 | E13: 3.293634064 | F13: 477 | G13: 2.700713396
A14: México | B14: 986 | C14: 2.691194934 | D14: 444 | E14: 2.339797639 | F14: 542 | G14: 3.068735138
A15: Panamá | B15: 888 | C15: 2.423713085 | D15: 410 | E15: 2.160623946 | F15: 478 | G15: 2.706375269
A16: Nicaragua | B16: 767 | C16: 2.093454883 | D16: 391 | E16: 2.06049747 | F16: 376 | G16: 2.128864228
A17: Guatemala | B17: 471 | C17: 1.285550521 | D17: 200 | E17: 1.053962901 | F17: 271 | G17: 1.534367569
A18: Colombia | B18: 397 | C18: 1.083574431 | D18: 186 | E18: 0.9801854975 | F18: 211 | G18: 1.194655192
A19: Venezuela | B19: 392 | C19: 1.069927398 | D19: 181 | E19: 0.953836425 | F19: 211 | G19: 1.194655192
A20: El Salvador | B20: 306 | C20: 0.8351984279 | D20: 137 | E20: 0.7219645868 | F20: 169 | G20: 0.9568565281
A21: Honduras | B21: 253 | C21: 0.6905398766 | D21: 133 | E21: 0.7008853288 | F21: 120 | G21: 0.6794247537
A22: Chile | B22: 250 | C22: 0.6823516567 | D22: 122 | E22: 0.6429173693 | F22: 128 | G22: 0.7247197373
A23: Argentina | B23: 241 | C23: 0.6577869971 | D23: 121 | E23: 0.6376475548 | F23: 120 | G23: 0.6794247537
A24: Perú | B24: 171 | C24: 0.4667285332 | D24: 89 | E24: 0.4690134907 | F24: 82 | G24: 0.4642735817
A25: Ecuador | B25: 148 | C25: 0.4039521808 | D25: 69 | E25: 0.3636172007 | F25: 79 | G25: 0.4472879629
A26: República Dominicana | B26: 133 | C26: 0.3630110814 | D26: 69 | E26: 0.3636172007 | F26: 64 | G26: 0.3623598686
A27: Brasil | B27: 99 | C27: 0.2702112561 | D27: 56 | E27: 0.2951096121 | F27: 43 | G27: 0.2434605367
A28: Cuba | B28: 39 | C28: 0.1064468585 | D28: 17 | E28: 0.08958684654 | F28: 22 | G28: 0.1245612048
A29: Bolivia | B29: 39 | C29: 0.1064468585 | D29: 18 | E29: 0.09485666105 | F29: 21 | G29: 0.1188993319
A30: Paraguay | B30: 29 | C30: 0.07915279218 | D30: 21 | E30: 0.1106661046 | F30: 8 | G30: 0.04529498358
A31: Uruguay | B31: 20 | C31: 0.05458813254 | D31: 12 | E31: 0.06323777403 | F31: 8 | G31: 0.04529498358
A32: Belice | B32: 10 | C32: 0.02729406627 | D32: 3 | E32: 0.01580944351 | F32: 7 | G32: 0.03963311063
A33: Trinidad y Tobago | B33: 6 | C33: 0.01637643976 | D33: 1 | E33: 0.005269814503 | F33: 5 | G33: 0.02830936474
A34: Jamaica | B34: 4 | C34: 0.01091762651 | D34: 0 | E34: 0 | F34: 4 | G34: 0.02264749179
A36: Europa | B36: =D36+F36 -> 3326 | C36: =B36/B$9*100 -> 9.078006441 | D36: =SUM(D37:D47) -> 1502 | E36: =D36/D$9*100 -> 7.915261383 | F36: =SUM(F37:F47) -> 1824 | G36: =F36/F$9*100 -> 10.32725626
A37: España | B37: =D37+F37 -> 887 | C37: =B37/B$9*100 -> 2.420983678 | D37: 411 | E37: =D37/D$9*100 -> 2.165893761 | F37: 476 | G37: =F37/F$9*100 -> 2.695051523
A38: Alemania | B38: 549 | C38: 1.498444238 | D38: 304 | E38: 1.602023609 | F38: 245 | G38: 1.387158872
A39: Francia | B39: 399 | C39: 1.089033244 | D39: 158 | E39: 0.8326306914 | F39: 241 | G39: 1.36451138
A40: Suiza | B40: 325 | C40: 0.8870571538 | D40: 139 | E40: 0.7325042159 | F40: 186 | G40: 1.053108368
A41: Reino Unido | B41: 320 | C41: 0.8734101206 | D41: 135 | E41: 0.7114249578 | F41: 185 | G41: 1.047446495
A42: Italia | B42: 288 | C42: 0.7860691086 | D42: 99 | E42: 0.5217116358 | F42: 189 | G42: 1.070093987
A43: Holanda | B43: 240 | C43: 0.6550575905 | D43: 101 | E43: 0.5322512648 | F43: 139 | G43: 0.7870003397
A44: Bélgica | B44: 164 | C44: 0.4476226868 | D44: 76 | E44: 0.4005059022 | F44: 88 | G44: 0.4982448194
A45: Austria | B45: 110 | C45: 0.300234729 | D45: 50 | E45: 0.2634907251 | F45: 60 | G45: 0.3397123769
A46: Rusia | B46: 40 | C46: 0.1091762651 | D46: 27 | E46: 0.1422849916 | F46: 13 | G46: 0.07360434832
A47: Turquía | B47: =D47+F47 -> 4 | C47: =B47/B$9*100 -> 0.01091762651 | D47: 2 | E47: =D47/D$9*100 -> 0.01053962901 | F47: 2 | G47: =F47/F$9*100 -> 0.0113237459
A49: Asia | B49: =D49+F49 -> 472 | C49: =B49/B$9*100 -> 1.288279928 | D49: =SUM(D50:D58) -> 230 | E49: =D49/D$9*100 -> 1.212057336 | F49: =SUM(F50:F58) -> 242 | G49: =F49/F$9*100 -> 1.370173253
A50: China | B50: 148 | C50: 0.4039521808 | D50: 79 | E50: 0.4163153457 | F50: 69 | G50: 0.3906692334
A51: Israel | B51: 108 | C51: 0.2947759157 | D51: 47 | E51: 0.2476812816 | F51: 61 | G51: 0.3453742498
A52: Japón | B52: 79 | C52: 0.2156231235 | D52: 33 | E52: 0.1739038786 | F52: 46 | G52: 0.2604461556
A53: Singapur | B53: 46 | C53: 0.1255527048 | D53: 25 | E53: 0.1317453626 | F53: 21 | G53: 0.1188993319
A54: Qatar | B54: 37 | C54: 0.1009880452 | D54: 18 | E54: 0.09485666105 | F54: 19 | G54: 0.107575586
A55: Corea | B55: 35 | C55: 0.09552923194 | D55: 16 | E55: 0.08431703204 | F55: 19 | G55: 0.107575586
A56: India | B56: 10 | C56: 0.02729406627 | D56: 6 | E56: 0.03161888702 | F56: 4 | G56: 0.02264749179
A57: Emiratos Árabes Unidos | B57: 8 | C57: 0.02183525302 | D57: 5 | E57: 0.02634907251 | F57: 3 | G57: 0.01698561884
A58: Indonesia | B58: 1 | C58: 0.002729406627 | D58: 1 | E58: 0.005269814503 | F58: 0 | G58: 0
A60: Oceanía | B60: =D60+F60 -> 129 | C60: =B60/B$9*100 -> 0.3520934549 | D60: =SUM(D61) -> 67 | E60: =D60/D$9*100 -> 0.3530775717 | F60: =SUM(F61) -> 62 | G60: =F60/F$9*100 -> 0.3510361227
A61: Australia | B61: =D61+F61 -> 129 | C61: =B61/B$9*100 -> 0.3520934549 | D61: 67 | E61: =D61/D$9*100 -> 0.3530775717 | F61: 62 | G61: =F61/F$9*100 -> 0.3510361227
A64: 1/ Costarricenses inscritos(as) que pueden ejercer el voto en extranjero para designar los puestos de Presidencia y Vicepresidencias, así como en consultas populares de orden nacional, según el artículo 187 del Código Electoral.
A65: Fuente: Sección Padrón Electoral del Tribunal Supremo de Elecciones.

Sheet 5
A1: CUADRO 5
A2: COSTA RICA: ELECTORADO NATURALIZADO, POR PAÍS DE ORIGEN
A3: SEGÚN SEXO Y GRUPO DE EDAD, AL 31 DE DICIEMBRE DE 2018
A5: SEXO Y GRUPO DE EDAD | B5: País de origen
B6: Total | C6: Nicaragua | D6: Colombia | E6: El Salvador | F6: Cuba | G6: China | H6: Perú | I6: Panamá | J6: Resto de países
A8: Costa Rica | B8: =SUM(B9:B24) -> 67545 | C8: 34967 | D8: 8634 | E8: 4214 | F8: 2465 | G8: 2122 | H8: 1939 | I8: 1678 | J8: 11526
A9: 16 - 19 | B9: =SUM(C9:J9) -> 495 | C9: =C27+C45 -> 218 | D9: =D27+D45 -> 147 | E9: 12 | F9: 11 | G9: 5 | H9: 13 | I9: 6 | J9: 83
A10: 20 - 24 | B10: =SUM(C10:J10) -> 1755 | C10: =C28+C46 -> 732 | D10: 577 | E10: 35 | F10: 65 | G10: 59 | H10: 38 | I10: 16 | J10: 233
A11: 25 - 29 | B11: 3218 | C11: 1892 | D11: 513 | E11: 75 | F11: 129 | G11: 116 | H11: 63 | I11: 19 | J11: 411
A12: 30 - 34 | B12: 5007 | C12: 3083 | D12: 659 | E12: 125 | F12: 122 | G12: 161 | H12: 120 | I12: 59 | J12: 678
A13: 35 - 39 | B13: 7571 | C13: 4364 | D13: 1176 | E13: 283 | F13: 154 | G13: 225 | H13: 197 | I13: 90 | J13: 1082
A14: 40 - 44 | B14: 8467 | C14: 4493 | D14: 1314 | E14: 515 | F14: 254 | G14: 264 | H14: 269 | I14: 118 | J14: 1240
A15: 45 - 49 | B15: 8501 | C15: 4271 | D15: 1155 | E15: 581 | F15: 316 | G15: 308 | H15: 241 | I15: 212 | J15: 1417
A16: 50 - 54 | B16: 7819 | C16: 3805 | D16: 1098 | E16: 487 | F16: 363 | G16: 213 | H16: 239 | I16: 234 | J16: 1380
A17: 55 - 59 | B17: 6121 | C17: 2782 | D17: 795 | E17: 505 | F17: 292 | G17: 166 | H17: 241 | I17: 213 | J17: 1127
A18: 60 - 64 | B18: 5150 | C18: 2352 | D18: 486 | E18: 525 | F18: 231 | G18: 159 | H18: 197 | I18: 181 | J18: 1019
A19: 65 - 69 | B19: 4293 | C19: 1919 | D19: 339 | E19: 422 | F19: 169 | G19: 154 | H19: 152 | I19: 166 | J19: 972
A20: 70 - 74 | B20: 3279 | C20: 1574 | D20: 186 | E20: 296 | F20: 132 | G20: 106 | H20: 90 | I20: 160 | J20: 735
A21: 75 - 79 | B21: 2272 | C21: 1207 | D21: 102 | E21: 172 | F21: 96 | G21: 78 | H21: 36 | I21: 78 | J21: 503
A22: 80 - 84 | B22: 1674 | C22: 1001 | D22: 51 | E22: 108 | F22: 57 | G22: 47 | H22: 27 | I22: 53 | J22: 330
A23: 85 - 89 | B23: =SUM(C23:J23) -> 1115 | C23: 701 | D23: 25 | E23: 51 | F23: 40 | G23: 41 | H23: 10 | I23: 50 | J23: 197
A24: 90 y más | B24: =SUM(C24:J24) -> 808 | C24: 573 | D24: 11 | E24: 22 | F24: 34 | G24: 20 | H24: 6 | I24: 23 | J24: 119
A26: Hombres | B26: =SUM(B27:B42) -> 29813 | C26: =SUM(C27:C42) -> 13898 | D26: =SUM(D27:D42) -> 4083 | E26: 1829 | F26: 1380 | G26: 1163 | H26: 1043 | I26: 721 | J26: 5696
A27: 16 - 19 | B27: =SUM(C27:J27) -> 257 | C27: 103 | D27: 86 | E27: 8 | F27: 8 | G27: 2 | H27: 8 | I27: 3 | J27: 39
A28: 20 - 24 | B28: =SUM(C28:J28) -> 827 | C28: 295 | D28: 303 | E28: 17 | F28: 40 | G28: 33 | H28: 20 | I28: 1 | J28: 118
A29: 25 - 29 | B29: 1349 | C29: 701 | D29: 253 | E29: 32 | F29: 74 | G29: 73 | H29: 28 | I29: 3 | J29: 185
A30: 30 - 34 | B30: 1908 | C30: 1041 | D30: 302 | E30: 51 | F30: 55 | G30: 97 | H30: 55 | I30: 19 | J30: 288
A31: 35 - 39 | B31: 3070 | C31: 1598 | D31: 532 | E31: 134 | F31: 70 | G31: 149 | H31: 105 | I31: 31 | J31: 451
A32: 40 - 44 | B32: 3569 | C32: 1738 | D32: 559 | E32: 231 | F32: 139 | G32: 143 | H32: 138 | I32: 50 | J32: 571
A33: 45 - 49 | B33: 3826 | C33: 1769 | D33: 551 | E33: 264 | F33: 172 | G33: 167 | H33: 122 | I33: 98 | J33: 683
A34: 50 - 54 | B34: 3635 | C34: 1648 | D34: 525 | E34: 210 | F34: 219 | G34: 96 | H34: 124 | I34: 112 | J34: 701
A35: 55 - 59 | B35: 2689 | C35: 1042 | D35: 394 | E35: 220 | F35: 174 | G35: 88 | H35: 125 | I35: 87 | J35: 559
A36: 60 - 64 | B36: 2168 | C36: 823 | D36: 204 | E36: 184 | F36: 145 | G36: 94 | H36: 114 | I36: 85 | J36: 519
A37: 65 - 69 | B37: 2003 | C37: 778 | D37: 171 | E37: 181 | F37: 100 | G37: 80 | H37: 89 | I37: 62 | J37: 542
A38: 70 - 74 | B38: 1699 | C38: 741 | D38: 112 | E38: 131 | F38: 83 | G38: 54 | H38: 67 | I38: 72 | J38: 439
A39: 75 - 79 | B39: 1159 | C39: 588 | D39: 53 | E39: 85 | F39: 52 | G39: 34 | H39: 25 | I39: 40 | J39: 282
A40: 80 - 84 | B40: 763 | C40: 436 | D40: 27 | E40: 47 | F40: 27 | G40: 23 | H40: 13 | I40: 29 | J40: 161
A41: 85 - 89 | B41: 509 | C41: 317 | D41: 7 | E41: 27 | F41: 10 | G41: 23 | H41: 8 | I41: 15 | J41: 102
A42: 90 y más | B42: 382 | C42: 280 | D42: 4 | E42: 7 | F42: 12 | G42: 7 | H42: 2 | I42: 14 | J42: 56
A44: Mujeres | B44: =SUM(B45:B60) -> 37732 | C44: 21069 | D44: 4551 | E44: 2385 | F44: 1085 | G44: 959 | H44: 896 | I44: 957 | J44: 5830
A45: 16 - 19 | B45: =SUM(C45:J45) -> 238 | C45: 115 | D45: 61 | E45: 4 | F45: 3 | G45: 3 | H45: 5 | I45: 3 | J45: 44
A46: 20 - 24 | B46: =SUM(C46:J46) -> 928 | C46: 437 | D46: 274 | E46: 18 | F46: 25 | G46: 26 | H46: 18 | I46: 15 | J46: 115
A47: 25 - 29 | B47: 1869 | C47: 1191 | D47: 260 | E47: 43 | F47: 55 | G47: 43 | H47: 35 | I47: 16 | J47: 226
A48: 30 - 34 | B48: 3099 | C48: 2042 | D48: 357 | E48: 74 | F48: 67 | G48: 64 | H48: 65 | I48: 40 | J48: 390
A49: 35 - 39 | B49: 4501 | C49: 2766 | D49: 644 | E49: 149 | F49: 84 | G49: 76 | H49: 92 | I49: 59 | J49: 631
A50: 40 - 44 | B50: 4898 | C50: 2755 | D50: 755 | E50: 284 | F50: 115 | G50: 121 | H50: 131 | I50: 68 | J50: 669
A51: 45 - 49 | B51: 4675 | C51: 2502 | D51: 604 | E51: 317 | F51: 144 | G51: 141 | H51: 119 | I51: 114 | J51: 734
A52: 50 - 54 | B52: 4184 | C52: 2157 | D52: 573 | E52: 277 | F52: 144 | G52: 117 | H52: 115 | I52: 122 | J52: 679
A53: 55 - 59 | B53: 3432 | C53: 1740 | D53: 401 | E53: 285 | F53: 118 | G53: 78 | H53: 116 | I53: 126 | J53: 568
A54: 60 - 64 | B54: 2982 | C54: 1529 | D54: 282 | E54: 341 | F54: 86 | G54: 65 | H54: 83 | I54: 96 | J54: 500
A55: 65 - 69 | B55: 2290 | C55: 1141 | D55: 168 | E55: 241 | F55: 69 | G55: 74 | H55: 63 | I55: 104 | J55: 430
A56: 70 - 74 | B56: 1580 | C56: 833 | D56: 74 | E56: 165 | F56: 49 | G56: 52 | H56: 23 | I56: 88 | J56: 296
A57: 75 - 79 | B57: 1113 | C57: 619 | D57: 49 | E57: 87 | F57: 44 | G57: 44 | H57: 11 | I57: 38 | J57: 221
A58: 80 - 84 | B58: 911 | C58: 565 | D58: 24 | E58: 61 | F58: 30 | G58: 24 | H58: 14 | I58: 24 | J58: 169
A59: 85 - 89 | B59: 606 | C59: 384 | D59: 18 | E59: 24 | F59: 30 | G59: 18 | H59: 2 | I59: 35 | J59: 95
A60: 90 y más | B60: 426 | C60: 293 | D60: 7 | E60: 15 | F60: 22 | G60: 13 | H60: 4 | I60: 9 | J60: 63
A63: 1/ Incluye las personas menores que tramitarán su cédula y cumplirán 18 años hasta el 2 de febrero de 2020 inclusive. Según el artículo 76 de la Ley 3504: "Ley Orgánica del Tribunal Supremo de Elecciones y del Registro Civil".
A65: Fuente: Sección Padrón Electoral del Tribunal Supremo de Elecciones.

Sheet G2
A2: Costa Rica | E2: GRÁFICO 2
A3: Resto de países | B3: 11526 | C3: 17.06417944 | E3: COSTA RICA: PORCENTAJE DEL ELECTORADO NATURALIZADO
A4: Panamá | B4: 1678 | C4: 2.484269746 | E4: POR PAÍS DE ORIGEN, AL 31 DE DICIEMBRE DE 2018
A5: Perú | B5: 1939 | C5: 2.870678807
A6: China | B6: 2122 | C6: 3.141609298
A7: Cuba | B7: 2465 | C7: 3.649418906
A8: El Salvador | B8: 4214 | C8: 6.23880376
A9: Colombia | B9: 8634 | C9: 12.78258938
A10: Nicaragua | B10: 34967 | C10: 51.76845066
B11: 67545
A13: Los datos se copian del cuadro respectivo
A14: ya que el total de cada país puede variar | C14: 0
A15: y por tanto la posición dentros del gráfico
C16: 0
C18: 0
C20: 0
C22: 0
C24: 0
C26: 0
C28: 0
C30: 0
E31: Fuente: Cuadro 5.

Sheet 6
A1: CUADRO 6
A2: COSTA RICA: MOVIMIENTOS AL PADRÓN NACIONAL ELECTORAL
A3: POR TIPO DE MOVIMIENTO, SEGÚN MES
A4: AL 31 DE DICIEMBRE DE 2018
A6: Mes | B6: Padrón Nacional Electoral anterior | D6: Tipo de movimiento | O6: Padrón Nacional Electoral actual 2/
D7: Inclusiones | I7: Exclusiones
D8: Cédulas Primera vez1/ | F8: Cédulas renovadas | I8: Defunción | K8: Cédulas vencidas | M8: Otras
A10: Enero | B10: 3322329 | D10: 0 | F10: 0 | I10: 0 | K10: 0 | M10: 0 | O10: 3322329
A11: Febrero | B11: 3322329 | D11: 0 | F11: 0 | I11: 0 | K11: 0 | M11: 0 | O11: 3322329
A12: Marzo | B12: 3322329 | D12: 0 | F12: 0 | I12: 0 | K12: 0 | M12: 0 | O12: 3322329
A13: Abril | B13: 3322329 | D13: 0 | F13: 0 | I13: 0 | K13: 0 | M13: 0 | O13: 3322329
A14: Mayo | B14: 3322329 | D14: 44088 | F14: 33968 | I14: 10840 | K14: 44061 | M14: 35 | O14: 3345449
A15: Junio | B15: 3345449 | D15: 6541 | F15: 3432 | I15: 1510 | K15: 3742 | M15: 2 | O15: 3350168
A16: Julio | B16: 3350168 | D16: 7444 | F16: 3970 | I16: 1206 | K16: 3807 | M16: 4 | O16: 3356565
A17: Agosto | B17: 3356565 | D17: 7866 | F17: 3878 | I17: 2893 | K17: 4076 | M17: 10 | O17: 3361330
A18: Setiembre | B18: 3361330 | D18: 7080 | F18: 3178 | I18: 1375 | K18: 3799 | M18: 10 | O18: 3366404
A19: Octubre | B19: 3366404 | D19: 8500 | F19: 4212 | I19: 1787 | K19: 3989 | M19: 4 | O19: 3373336
A20: Noviembre | B20: 3373336 | D20: 7754 | F20: 4137 | I20: 1876 | K20: 3825 | M20: 4 | O20: 3379522
A21: Diciembre | B21: 3379522 | D21: 5816 | F21: 3178 | I21: 662 | K21: 3132 | M21: 2 | O21: 3384720
A24: 1/ Incluye nuevos electores, inclusión condicional de nuevos electores y otras inclusiones.
A25: 2/ Incluye al electorado inscrito en Costa Rica y en el extranjero.
A27: Fuente: Sección Padrón Electoral del Tribunal Supremo de Elecciones.

Sheet 7
A1: CUADRO 7
A2: COSTA RICA: SOLICITUDES DE CÉDULA RECIBIDAS, POR CLASE DE SOLICITUD
A3: SEGÚN MES, AL 31 DE DICIEMBRE DE 2018
A4: (Absoluto y Porcentaje)
A6: Mes | B6: Clase de solicitud
B7: Absoluto | F7: Porcentaje
B8: Total | C8: Primera vez | D8: Duplicado | E8: Traslado | F8: Total | G8: Primera vez | H8: Duplicado | I8: Traslado
A10: TOTAL | B10: =SUM(B12:B23) -> 799624 | C10: =SUM(C12:C23) -> 80771 | D10: =SUM(D12:D23) -> 717559 | E10: =SUM(E12:E23) -> 1294 | F10: =SUM(G10:I10) -> 100 | G10: =C10/$B10*100 -> 10.10112253 | H10: =D10/$B10*100 -> 89.73705141 | I10: =E10/$B10*100 -> 0.1618260582
A12: Enero | B12: =SUM(C12:E12) -> 99190 | C12: 6397 | D12: 92726 | E12: 67 | F12: =SUM(G12:I12) -> 100 | G12: =C12/$B12*100 -> 6.449238835 | H12: =D12/$B12*100 -> 93.48321403 | I12: =E12/$B12*100 -> 0.06754713177
A13: Febrero | B13: =SUM(C13:E13) -> 76249 | C13: 5628 | D13: 70414 | E13: 207 | F13: 100 | G13: =C13/$B13*100 -> 7.381080408 | H13: 92.34744062 | I13: 0.2714789702
A14: Marzo | B14: 75411 | C14: 5740 | D14: 69527 | E14: 144 | F14: 100 | G14: 7.611621647 | H14: 92.19742478 | I14: 0.1909535744
A15: Abril | B15: 59947 | C15: 6083 | D15: 53721 | E15: 143 | F15: 100 | G15: 10.14729678 | H15: 89.61415917 | I15: 0.2385440472
A16: Mayo | B16: 61733 | C16: 6598 | D16: 55027 | E16: 108 | F16: 100 | G16: 10.68796268 | H16: 89.13709037 | I16: 0.174946949
A17: Junio | B17: 58582 | C17: 6316 | D17: 52181 | E17: 85 | F17: 100 | G17: 10.78146871 | H17: 89.07343553 | I17: 0.1450957632
A18: Julio | B18: 65691 | C18: 7638 | D18: 57976 | E18: 77 | F18: 100 | G18: 11.62716354 | H18: 88.25562101 | I18: 0.1172154481
A19: Agosto | B19: 66050 | C19: 7460 | D19: 58460 | E19: 130 | F19: 100 | G19: 11.29447388 | H19: 88.50870553 | I19: 0.1968205905
A20: Setiembre | B20: 55750 | C20: 6602 | D20: 49048 | E20: 100 | F20: =SUM(G20:I20) -> 100 | G20: 11.84215247 | H20: 87.97847534 | I20: 0.1793721973
A21: Octubre | B21: 68379 | C21: 8528 | D21: 59735 | E21: 116 | F21: 100 | G21: 12.47166528 | H21: 87.358692 | I21: 0.1696427266
A22: Noviembre | B22: 66496 | C22: 8025 | D22: 58414 | E22: 57 | F22: 100 | G22: 12.06839509 | H22: 87.84588547 | I22: 0.08571944177
A23: Diciembre | B23: 46146 | C23: 5756 | D23: 40330 | E23: 60 | F23: 100 | G23: 12.47345382 | H23: 87.39652408 | I23: =E23/$B23*100 -> 0.1300221038
A26: Fuente: Sección Solicitudes Cedulares y Coordinación de Servicios Regionales del Tribunal Supremo de Elecciones.

Sheet G3
A2: GRÁFICO 3
A3: COSTA RICA: PORCENTAJE DE SOLICITUDES DE CÉDULA RECIBIDAS | J3: SOLICITUDES CEDULARES RECIBIDAS
A4: POR CLASE DE SOLICITUD, AL 31 DE DICIEMBRE DE 2018 | J4: TOTAL | K4: 799624
J5: Duplicado | K5: 717559 | L5: 89.73705141
J6: Primera vez | K6: 80771 | L6: 10.10112253
E7: Sin lugar | J7: Traslado | K7: 1294 | L7: 0.1618260582
A30: Fuente: Cuadro 7.

Sheet 8
A1: CUADRO 8
A2: COSTA RICA: SOLICITUDES DE CÉDULA RECIBIDAS, POR CLASE DE SOLICITUD
A3: SEGÚN PROVINCIA, AL 31 DE DICIEMBRE DE 2018
A4: (Absoluto y Porcentaje)
A6: Provincia | B6: Clase de solicitud
B7: Absoluto | F7: Porcentaje
B8: Total | C8: Primera vez | D8: Duplicado | E8: Traslado | F8: Total | G8: Primera vez | H8: Duplicado | I8: Traslado
A10: Costa Rica | B10: =SUM(C10:E10) -> 799624 | C10: =SUM(C12:C19) -> 81235 | D10: =SUM(D12:D19) -> 717095 | E10: 1294 | F10: 100 | G10: 100 | H10: 100 | I10: 100
A12: San José | B12: =SUM(C12:E12) -> 332197 | C12: 32107 | D12: 299588 | E12: 502 | F12: =(B12/B$10*100) -> 41.54415075 | G12: =(C12/C$10*100) -> 39.52360436 | H12: =D12/D$10*100 -> 41.7780071 | I12: =E12/E$10*100 -> 38.79443586
A13: Alajuela | B13: =SUM(C13:E13) -> 131678 | C13: 15191 | D13: 116194 | E13: 293 | F13: =(B13/B$10*100) -> 16.46748972 | G13: 18.7000677 | H13: =D13/D$10*100 -> 16.2034319 | I13: 22.64296754
A14: Cartago | B14: 59462 | C14: 6451 | D14: 52956 | E14: 55 | F14: 7.436245035 | G14: 7.941158368 | H14: 7.384795599 | I14: 4.250386399
A15: Heredia | B15: 57940 | C15: 6397 | D15: 51314 | E15: 229 | F15: 7.245905576 | G15: 7.874684557 | H15: 7.155816175 | I15: =E15/E$10*100 -> 17.69706337
A16: Guanacaste | B16: 55333 | C16: 6005 | D16: 49271 | E16: 57 | F16: 6.919877342 | G16: 7.392133932 | H16: 6.870916685 | I16: 4.404945904
A17: Puntarenas | B17: 74989 | C17: 7287 | D17: 67586 | E17: 116 | F17: 9.378032675 | G17: 8.970271435 | H17: 9.424971587 | I17: 8.964451314
A18: Limón | B18: 76967 | C18: 7510 | D18: 69451 | E18: 6 | F18: 9.625398938 | G18: 9.244783652 | H18: 9.685048703 | I18: 0.4636785162
A19: Cedulación ambulante | B19: 11058 | C19: 287 | D19: 10735 | E19: 36 | F19: =(B19/B$10*100) -> 1.382899963 | G19: =(C19/C$10*100) -> 0.3532959931 | H19: =D19/D$10*100 -> 1.497012251 | I19: =E19/E$10*100 -> 2.782071097
A22: Fuente: Sección Solicitudes Cedulares y Coordinación de Servicios Regionales del Tribunal Supremo de Elecciones.

Sheet G4
A2: GRÁFICO 4
A3: COSTA RICA: SOLICITUDES DE CÉDULA RECIBIDAS, POR CLASE DE SOLICITUD | L3: PV | M3: DUP | N3: TRASL
A4: SEGÚN PROVINCIA, AL 31 DE DICIEMBRE DE 2018 | K4: San José | L4: 32107 | M4: 299588 | N4: 502
K5: Alajuela | L5: 15191 | M5: 116194 | N5: 293
K6: Limón | L6: 7510 | M6: 69451 | N6: 6
K7: Puntarenas | L7: 7287 | M7: 67586 | N7: 116
K8: Cartago | L8: 6451 | M8: 52956 | N8: 55
K9: Guanacaste | L9: 6005 | M9: 49271 | N9: 57
K10: Heredia | L10: 6397 | M10: 51314 | N10: 229 | O10: 799624
K11: Cedulación ambulante | L11: 287 | M11: 10735 | N11: 36
K12: Total | L12: 81235 | M12: 717095 | N12: 1294
L15: Duplicado | M15: Primera vez | N15: Traslado
K16: Cedulación ambulante | L16: 10.735 | M16: 0.287 | N16: 0.036
K17: Guanacaste | L17: 49.271 | M17: 6.005 | N17: 0.057
K18: Heredia | L18: 51.314 | M18: 6.397 | N18: 0.229
K19: Cartago | L19: 52.956 | M19: 6.451 | N19: 0.055
K20: Puntarenas | L20: 67.586 | M20: 7.287 | N20: 0.116
K21: Limón | L21: 69.451 | M21: 7.51 | N21: 0.006
K22: Alajuela | L22: 116.194 | M22: 15.191 | N22: 0.293
K23: San José | L23: 299.588 | M23: 32.107 | N23: 0.502
K24: Total | L24: 717.095 | M24: 81.235 | N24: 1.294
A31: Fuente: Cuadro 8.

Sheet 9
A1: CUADRO 9
A2: COSTA RICA: SOLICITUDES DE CÉDULA RECIBIDAS
A3: POR FUENTE DE INGRESO, SEGÚN MES
A4: AL 31 DE DICIEMBRE DE 2018
A6: Mes | B6: Fuente de ingreso
B7: Total | C7: Sede central | D7: Oficinas regionales 1/ | E7: Consulados | F7: Cedulación a domicilio | G7: Cedulación ambulante | H7: Regionalización
A9: TOTAL | B9: =SUM(B11:B22) -> 799624 | C9: 288087 | D9: 491747 | E9: 4013 | F9: 881 | G9: =SUM(G11:G22) -> 11058 | H9: 3838
A11: Enero | B11: =SUM(C11:H11) -> 99190 | C11: 33271 | D11: 64011 | E11: 244 | F11: 462 | G11: 1202 | H11: 0
A12: Febrero | B12: =SUM(C12:H12) -> 76249 | C12: 26787 | D12: 48566 | E12: 430 | F12: 419 | G12: 47 | H12: 0
A13: Marzo | B13: 75411 | C13: 28682 | D13: 45004 | E13: 264 | F13: 0 | G13: 1461 | H13: 0
A14: Abril | B14: 59947 | C14: 21904 | D14: 37167 | E14: 432 | F14: 0 | G14: 444 | H14: 0
A15: Mayo | B15: 61733 | C15: 21926 | D15: 38782 | E15: 254 | F15: 0 | G15: 771 | H15: 0
A16: Junio | B16: 58582 | C16: 21167 | D16: 35575 | E16: 402 | F16: 0 | G16: 1043 | H16: 395
A17: Julio | B17: 65691 | C17: 23945 | D17: 39412 | E17: 350 | F17: 0 | G17: 1445 | H17: 539
A18: Agosto | B18: 66050 | C18: 23967 | D18: 40172 | E18: 403 | F18: 0 | G18: 1019 | H18: 489
A19: Setiembre | B19: 55750 | C19: 20313 | D19: 33719 | E19: 287 | F19: 0 | G19: 839 | H19: 592
A20: Octubre | B20: 68379 | C20: 25047 | D20: 41503 | E20: 243 | F20: 0 | G20: 935 | H20: 651
A21: Noviembre | B21: 66496 | C21: 23956 | D21: 39991 | E21: 447 | F21: 0 | G21: 1262 | H21: 840
A22: Diciembre | B22: 46146 | C22: 17122 | D22: 27845 | E22: 257 | F22: 0 | G22: 590 | H22: 332
A25: 1/ El Tribunal Supremo de Elecciones cuenta con 32 Oficinas Regionales.
A27: Fuente: Sección Solicitudes Cedulares y Coordinación de Servicios Regionales del Tribunal Supremo de Elecciones.

Sheet G5
A2: GRÁFICO 5
A3: COSTA RICA: PORCENTAJE DE SOLICITUDES DE CÉDULA RECIBIDAS | J3: SOLICITUDES CEDULARES RECIBIDAS
A4: POR FUENTE DE INGRESO, AL 31 DE DICIEMBRE DE 2018 | J4: TOTAL | K4: 799624
J5: Oficinas Regionales | K5: 491747 | L5: 61.49727872
J6: Sede Central | K6: 288087 | L6: 36.02780807
E7: Sin lugar | J7: Cedulación Ambulante | K7: 11058 | L7: 1.382899963
J8: Consulados y domicilio | K8: 4894 | L8: 0.6120376577
J9: Regionalización | K9: 3838 | L9: 0.4799755885
J11: Chequear que el orden sea de mayor a menor
A29: Fuente: Cuadro 9.

Sheet 10
A2: CUADRO 10
A3: SOLICITUDES DE CÉDULA RECIBIDAS EN LAS OFICINAS REGIONALES
A4: POR MES, SEGÚN OFICINA REGIONAL
A5: AL 31 DE DICIEMBRE DE 2018
A7: Oficina Regional | B7: Total | C7: Enero | D7: Febrero | E7: Marzo | F7: Abril | G7: Mayo | H7: Junio | I7: Julio | J7: Agosto | K7: Setiembre | L7: Octubre | M7: Noviembre | N7: Diciembre
A9: TOTAL | B9: =SUM(B11:B42) -> 491747 | C9: =SUM(C11:C42) -> 64011 | D9: 48566 | E9: 45004 | F9: 37167 | G9: 38782 | H9: 35575 | I9: 39412 | J9: 40172 | K9: 33719 | L9: 41503 | M9: 39991 | N9: 27845
A11: Alajuela | B11: =SUM(C11:N11) -> 29837 | C11: 5911 | D11: 4610 | E11: 4441 | F11: 3207 | G11: 3358 | H11: 3137 | I11: 305 | J11: 3577 | K11: 358 | L11: 335 | M11: 336 | N11: 262
A12: Atenas | B12: 4469 | C12: 535 | D12: 350 | E12: 324 | F12: 276 | G12: 293 | H12: 261 | I12: 492 | J12: 305 | K12: 351 | L12: 482 | M12: 495 | N12: 305
A13: Buenos Aires | B13: 7830 | C13: 866 | D13: 714 | E13: 588 | F13: 519 | G13: 532 | H13: 450 | I13: 758 | J13: 520 | K13: 578 | L13: 863 | M13: 836 | N13: 606
A14: Cañas | B14: 23326 | C14: 1235 | D14: 933 | E14: 805 | F14: 686 | G14: 737 | H14: 752 | I14: 3715 | J14: 798 | K14: 3499 | L14: 3975 | M14: 3685 | N14: 2506
A15: Cartago | B15: 32695 | C15: 6030 | D15: 4633 | E15: 4665 | F15: 3703 | G15: 3333 | H15: 2731 | I15: 846 | J15: 3814 | K15: 653 | L15: 805 | M15: 886 | N15: 596
A16: Corredores | B16: 9089 | C16: 1411 | D16: 1062 | E16: 909 | F16: 833 | G16: 881 | H16: 795 | I16: 499 | J16: 782 | K16: 419 | L16: 526 | M16: 569 | N16: 403
A17: Coto Brus | B17: 6794 | C17: 882 | D17: 846 | E17: 614 | F17: 498 | G17: 542 | H17: 500 | I17: 492 | J17: 537 | K17: 488 | L17: 525 | M17: 533 | N17: 337
A18: Golfito | B18: 10060 | C18: 865 | D18: 587 | E18: 529 | F18: 430 | G18: 495 | H18: 466 | I18: 1295 | J18: 578 | K18: 1180 | L18: 1420 | M18: 1157 | N18: 1058
A19: Grecia | B19: =SUM(C19:N19) -> 10736 | C19: 1974 | D19: 1425 | E19: 1385 | F19: 1092 | G19: 1200 | H19: 1094 | I19: 281 | J19: 1265 | K19: 226 | L19: 312 | M19: 301 | N19: 181
A20: Guatuso | B20: 20409 | C20: 486 | D20: 346 | E20: 272 | F20: 268 | G20: 258 | H20: 221 | I20: 3960 | J20: 325 | K20: 3621 | L20: 4146 | M20: 3961 | N20: 2545
A21: Heredia | B21: 31740 | C21: 6361 | D21: 4748 | E21: 4639 | F21: 3601 | G21: 3713 | H21: 3634 | I21: 200 | J21: 4030 | K21: 202 | L21: 224 | M21: 240 | N21: 148
A22: Jicaral | B22: 10120 | C22: 344 | D22: 261 | E22: 214 | F22: 218 | G22: 227 | H22: 227 | I22: 1832 | J22: 224 | K22: 1508 | L22: 1849 | M22: 1863 | N22: 1353
A23: Liberia | B23: 22611 | C23: 2819 | D23: 2171 | E23: 1920 | F23: 1656 | G23: 1677 | H23: 1631 | I23: 1878 | J23: 1971 | K23: 1459 | L23: 2124 | M23: 1917 | N23: 1388
A24: Limón | B24: 16741 | C24: 3283 | D24: 2650 | E24: 2177 | F24: 1892 | G24: 2030 | H24: 1700 | I24: 242 | J24: 1899 | K24: 202 | L24: 252 | M24: 243 | N24: 171
A25: Los Chiles | B25: 6139 | C25: 411 | D25: 277 | E25: 258 | F25: 261 | G25: 243 | H25: 258 | I25: 897 | J25: 237 | K25: 737 | L25: 969 | M25: 937 | N25: 654
A26: Nicoya | B26: 9922 | C26: 1531 | D26: 1080 | E26: 979 | F26: 872 | G26: 926 | H26: 818 | I26: 597 | J26: 871 | K26: 531 | L26: 664 | M26: 626 | N26: 427
A27: Orotina | B27: 6428 | C27: 962 | D27: 722 | E27: 594 | F27: 575 | G27: 559 | H27: 591 | I27: 387 | J27: 634 | K27: 287 | L27: 427 | M27: 415 | N27: 275
A28: Osa | B28: 12722 | C28: 615 | D28: 471 | E28: 463 | F28: 387 | G28: 451 | H28: 404 | I28: 2192 | J28: 381 | K28: 1733 | L28: 2054 | M28: 2204 | N28: 1367
A29: Pérez Zeledón | B29: 28342 | C29: 3462 | D29: 2538 | E29: 2368 | F29: 2065 | G29: 2135 | H29: 1928 | I29: 2588 | J29: 2126 | K29: 2024 | L29: 2688 | M29: 2566 | N29: 1854
A30: Pococí | B30: 30583 | C30: 4266 | D30: 2943 | E30: 2901 | F30: 2393 | G30: 2712 | H30: 2495 | I30: 2228 | J30: 2557 | K30: 1838 | L30: 2228 | M30: 2404 | N30: 1618
A31: Puntarenas | B31: 20171 | C31: 3455 | D31: 2614 | E31: 2396 | F31: 2231 | G31: 2324 | H31: 2036 | I31: 573 | J31: 2231 | K31: 566 | L31: 661 | M31: 672 | N31: 412
A32: Puriscal | B32: 7665 | C32: 927 | D32: 646 | E32: 675 | F32: 487 | G32: 557 | H32: 582 | I32: 692 | J32: 643 | K32: 558 | L32: 637 | M32: 739 | N32: 522
A33: Quepos | B33: =SUM(C33:N33) -> 21326 | C33: 1096 | D33: 790 | E33: 718 | F33: 661 | G33: 701 | H33: 594 | I33: 3568 | J33: 710 | K33: 2985 | L33: 3671 | M33: 3466 | N33: 2366
A34: San Carlos | B34: 25315 | C34: 3181 | D34: 2479 | E34: 2182 | F34: 1932 | G34: 2097 | H34: 1832 | I34: 2043 | J34: 2010 | K34: 1796 | L34: 2185 | M34: 2069 | N34: 1509
A35: San Ramón | B35: 21289 | C35: 2612 | D35: 2129 | E35: 1969 | F35: 1510 | G35: 1600 | H35: 1595 | I35: 1762 | J35: 1641 | K35: 1521 | L35: 1869 | M35: 1774 | N35: 1307
A36: Santa Cruz | B36: 11378 | C36: 1420 | D36: 1111 | E36: 897 | F36: 728 | G36: 840 | H36: 958 | I36: 1010 | J36: 1021 | K36: 817 | L36: 988 | M36: 931 | N36: 657
A37: Sarapiquí | B37: 8981 | C37: 1167 | D37: 896 | E37: 813 | F37: 715 | G37: 730 | H37: 662 | I37: 683 | J37: 744 | K37: 623 | L37: 758 | M37: 695 | N37: 495
A38: Siquirres | B38: 14276 | C38: 1917 | D38: 1422 | E38: 1443 | F38: 1078 | G38: 1177 | H38: 957 | I38: 1027 | J38: 1219 | K38: 881 | L38: 1231 | M38: 1153 | N38: 771
A39: Talamanca | B39: 6000 | C39: 791 | D39: 632 | E39: 562 | F39: 469 | G39: 461 | H39: 484 | I39: 405 | J39: 517 | K39: 353 | L39: 540 | M39: 378 | N39: 408
A40: Tarrazú | B40: 4710 | C40: 552 | D40: 472 | E40: 415 | F40: 374 | G40: 383 | H40: 321 | I40: 398 | J40: 378 | K40: 390 | L40: 410 | M40: 367 | N40: 250
A41: Turrialba | B41: 13056 | C41: 1575 | D41: 1318 | E41: 1235 | F41: 995 | G41: 1089 | H41: 1010 | I41: 1029 | J41: 1040 | K41: 888 | L41: 1116 | M41: 1044 | N41: 717
A42: Upala | B42: 6987 | C42: 1069 | D42: 690 | E42: 654 | F42: 555 | G42: 521 | H42: 451 | I42: 538 | J42: 587 | K42: 447 | L42: 569 | M42: 529 | N42: 377
A45: FUENTE: Coordinación de Servicios Regionales del Tribunal Supremo de Elecciones.

Sheet 11
A1: CUADRO 11
A2: COSTA RICA: PRODUCTOS Y SERVICIOS BRINDADOS, POR TIPO DE SERVICIO
A3: SEGÚN MES, AL 31 DE DICIEMBRE DE 2018
A5: Mes | B5: Productos y Sevicios
B6: Cédulas de identidad impresas | C6: Tarjetas identidad de menores impresas | D6: Certificaciones y constancias expedidas | E6: Asambleas de partidos políticos fiscalizadas | F6: Atención de consultas en materia electoral 1/ | G6: Movimientos y actualizaciones al Padrón Electoral 2/
A8: Total | B8: =SUM(B10:B21) -> 800564 | C8: 149463 | D8: 1935250 | E8: 875 | F8: 38405 | G8: 1074944
A10: Enero | B10: 97905 | C10: 17051 | D10: 194741 | E10: 5 | F10: 7363 | G10: 0
A11: Febrero | B11: 78440 | C11: 14523 | D11: 229167 | E11: 10 | F11: 7757 | G11: 0
A12: Marzo | B12: 76286 | C12: 9448 | D12: 175106 | E12: 13 | F12: 8874 | G12: 0
A13: Abril | B13: 57914 | C13: 9620 | D13: 166363 | E13: 10 | F13: 3179 | G13: 0
A14: Mayo | B14: 63301 | C14: 10013 | D14: 174280 | E14: 9 | F14: 2833 | G14: 605264
A15: Junio | B15: 58357 | C15: 10035 | D15: 126227 | E15: 39 | F15: 1772 | G15: 65761
A16: Julio | B16: 64582 | C16: 13721 | D16: 130005 | E16: 49 | F16: 2175 | G16: 70615
A17: Agosto | B17: 66317 | C17: 11156 | D17: 156744 | E17: 73 | F17: 979 | G17: 73806
A18: Setiembre | B18: 55555 | C18: 9946 | D18: 106164 | E18: 95 | F18: 926 | G18: 61270
A19: Octubre | B19: 68311 | C19: 15209 | D19: 147469 | E19: 133 | F19: 879 | G19: 75070
A20: Noviembre | B20: 66720 | C20: 15506 | D20: 206495 | E20: 214 | F20: 1012 | G20: 72770
A21: Diciembre | B21: 46876 | C21: 13235 | D21: 122489 | E21: 225 | F21: 656 | G21: 50388
A24: 1/ De Partidos Políticos, Municipalidades, Asamblea Legislativa y otros.
A25: 2/ El Padrón Nacional Electoral se cerró en octubre 2014 debido a las elecciones municipales de febrero 2015.
A27: Fuente: Oficinas del Tribunal Supremo de Elecciones.

Sheet 12
A2: CUADRO 12
A3: COSTA RICA: CERTIFICACIONES, CONSTANCIAS Y TARJETAS DE IDENTIDAD DE MENORES EXPEDIDAS
A4: SEGÚN MES, AL 31 DE DICIEMBRE DE 2018
A6: Certificaciones, constancias y TIM | B6: Total | C6: Enero | D6: Febrero | E6: Marzo | F6: Abril | G6: Mayo | H6: Junio | I6: Julio | J6: Agosto | K6: Setiembre | L6: Octubre | M6: Noviembre | N6: Diciembre
A8: Certificaciones y constancias expedidas | B8: =SUM(C8:N8) -> 1935250 | C8: =C9+C11 -> 194741 | D8: =D9+D11 -> 229167 | E8: 175106 | F8: 166363 | G8: 174280 | H8: 126227 | I8: 130005 | J8: 156744 | K8: 106164 | L8: 147469 | M8: 206495 | N8: 122489
A9: Sede Central | B9: =SUM(B10:B10) -> 624447 | C9: 70082 | D9: 66163 | E9: 53803 | F9: 58772 | G9: 56139 | H9: 28635 | I9: 36942 | J9: 43137 | K9: 29235 | L9: 40542 | M9: 94868 | N9: 46129
A10: Certificaciones | B10: =SUM(C10:N10) -> 624447 | C10: 70082 | D10: 66163 | E10: 53803 | F10: 58772 | G10: 56139 | H10: 28635 | I10: 36942 | J10: 43137 | K10: 29235 | L10: 40542 | M10: 94868 | N10: 46129
A11: Oficinas regionales | B11: =SUM(B12:B13) -> 1310803 | C11: =SUM(C12:C13) -> 124659 | D11: =SUM(D12:D13) -> 163004 | E11: 121303 | F11: 107591 | G11: 118141 | H11: 97592 | I11: 93063 | J11: 113607 | K11: 76929 | L11: 106927 | M11: =SUM(M12:M13) -> 111627 | N11: 76360
A12: Certificaciones | B12: =SUM(C12:N12) -> 1217838 | C12: 119611 | D12: 149536 | E12: 112223 | F12: 101204 | G12: 111150 | H12: 91614 | I12: 87104 | J12: 106262 | K12: 71772 | L12: 95627 | M12: 99665 | N12: 72070
A13: Constancias | B13: =SUM(C13:N13) -> 92965 | C13: 5048 | D13: 13468 | E13: 9080 | F13: 6387 | G13: 6991 | H13: 5978 | I13: 5959 | J13: 7345 | K13: 5157 | L13: 11300 | M13: 11962 | N13: 4290
B14: =SUM(C14:D14) -> 0
A15: TIM expedidas | B15: =SUM(C15:N15) -> 149463 | C15: =C16+C19+C22 -> 17051 | D15: =D16+D19+D22 -> 14523 | E15: 9448 | F15: 9620 | G15: 10013 | H15: 10035 | I15: 13721 | J15: 11156 | K15: 9946 | L15: 15209 | M15: 15506 | N15: 13235
A16: Departamento Civil | B16: =SUM(C16:N16) -> 40061 | C16: =SUM(C17:C18) -> 4778 | D16: =SUM(D17:D18) -> 3371 | E16: 2519 | F16: 2475 | G16: 2623 | H16: 2609 | I16: 3937 | J16: 3087 | K16: 2699 | L16: 4405 | M16: 4194 | N16: 3364
A17: Emitidas por primera vez | B17: =SUM(C17:N17) -> 19009 | C17: 2156 | D17: 1183 | E17: 1122 | F17: 1237 | G17: 1337 | H17: 1252 | I17: 2057 | J17: 1564 | K17: 1383 | L17: 2301 | M17: 1941 | N17: 1476
A18: Duplicadas | B18: =SUM(C18:N18) -> 21052 | C18: 2622 | D18: 2188 | E18: 1397 | F18: 1238 | G18: 1286 | H18: 1357 | I18: 1880 | J18: 1523 | K18: 1316 | L18: 2104 | M18: 2253 | N18: 1888
A19: Oficinas regionales | B19: =SUM(B20:B21) -> 108145 | C19: =SUM(C20:C21) -> 12272 | D19: =SUM(D20:D21) -> 11152 | E19: =SUM(E20:E21) -> 6924 | F19: 6949 | G19: 7295 | H19: 7146 | I19: 9528 | J19: 7859 | K19: 7247 | L19: 10804 | M19: 11274 | N19: 9695
A20: Emitidas por primera vez | B20: =SUM(C20:N20) -> 53072 | C20: 5638 | D20: 4261 | E20: 3154 | F20: 3333 | G20: 3610 | H20: 3672 | I20: 4510 | J20: 4139 | K20: 4047 | L20: 6183 | M20: 5925 | N20: 4600
A21: Duplicadas | B21: =SUM(C21:N21) -> 55073 | C21: 6634 | D21: 6891 | E21: 3770 | F21: 3616 | G21: 3685 | H21: 3474 | I21: 5018 | J21: 3720 | K21: 3200 | L21: 4621 | M21: 5349 | N21: 5095
A22: Giras | B22: =SUM(B23:B24) -> 1257 | C22: =SUM(C23:C24) -> 1 | D22: =SUM(D23:D24) -> 0 | E22: =SUM(E23:E24) -> 5 | F22: 196 | G22: 95 | H22: 280 | I22: 256 | J22: 210 | K22: 0 | L22: 0 | M22: 38 | N22: 176
A23: Emitidas por primera vez | B23: =SUM(C23:N23) -> 260 | C23: 1 | D23: 0 | E23: 5 | F23: 24 | G23: 14 | H23: 36 | I23: 21 | J23: 36 | K23: 0 | L23: 0 | M23: 26 | N23: 97
A24: Duplicadas | B24: =SUM(C24:N24) -> 997 | C24: 0 | D24: 0 | E24: 0 | F24: 172 | G24: 81 | H24: 244 | I24: 235 | J24: 174 | K24: 0 | L24: 0 | M24: 12 | N24: 79
A27: Fuente: Informe mensual de labores del Departamento Civil, Departamento Electoral y Coordinación de Servicios Regionales del Tribunal Supremo de Elecciones.

Sheet 13
A1: CUADRO 13
A2: COSTA RICA: INSCRIPCIONES CIVILES POR MES, SEGÚN CLASE DE INSCRIPCIÓN
A3: AL 31 DE DICIEMBRE DE 2018
A5: Clase de inscripción 1/ | B5: Total | C5: Mes
C6: Enero | D6: Febrero | E6: Marzo | F6: Abril | G6: Mayo | H6: Junio | I6: Julio | J6: Agosto | K6: Setiembre | L6: Octubre | M6: Noviembre | N6: Diciembre
A8: Nacimientos | B8: =SUM(C8:N8) -> 49355 | C8: 5754 | D8: 6416 | E8: 2689 | F8: 3420 | G8: 4372 | H8: 4073 | I8: 3648 | J8: 4344 | K8: 3752 | L8: 4412 | M8: 3855 | N8: 2620
A10: Matrimonios | B10: =SUM(B11:B13) -> 23249 | C10: =SUM(C11:C13) -> 1986 | D10: 1776 | E10: 2068 | F10: 2049 | G10: 1932 | H10: 1975 | I10: 1914 | J10: 1604 | K10: 1591 | L10: 1527 | M10: 1967 | N10: 2860
A11: Católicos | B11: =SUM(C11:N11) -> 7421 | C11: 845 | D11: 454 | E11: 671 | F11: 558 | G11: 579 | H11: 531 | I11: 676 | J11: 533 | K11: 479 | L11: 422 | M11: 658 | N11: 1015
A12: Civiles | B12: =SUM(C12:N12) -> 13157 | C12: 883 | D12: 1114 | E12: 1236 | F12: 1388 | G12: 1252 | H12: 1001 | I12: 1066 | J12: 930 | K12: 806 | L12: 820 | M12: 1093 | N12: 1568
A13: Extranjeros2/ | B13: =SUM(C13:N13) -> 2671 | C13: 258 | D13: 208 | E13: 161 | F13: 103 | G13: 101 | H13: 443 | I13: 172 | J13: 141 | K13: 306 | L13: 285 | M13: 216 | N13: 277
A15: Defunciones | B15: =SUM(C15:N15) -> 24299 | C15: 3238 | D15: 2181 | E15: 2129 | F15: 1625 | G15: 1948 | H15: 2257 | I15: 1815 | J15: 2159 | K15: 1591 | L15: 1834 | M15: 2092 | N15: 1430
A18: 1/ Todos los datos se refieren a hechos inscritos en el mes respectivo, no así a los ocurridos.
A20: 2/ Matrimonios inscritos, pero realizados en el extranjero.
A22: Fuente: Sección de Inscripciones del Tribunal Supremo de Elecciones.

Sheet G6
A2: GRÁFICO 6
A3: COSTA RICA: MATRIMONIOS INSCRITOS, SEGÚN CLASE DE INSCRIPCIÓN | K3: MATRIMONIOS INSCRITOS
A4: AL 31 DE DICIEMBRE DE 2018 | K4: Civiles | L4: 13157 | M4: 56.59168136
K5: Católicos | L5: 7421 | M5: 31.91965246
K6: Extranjeros | L6: 2671 | M6: 11.48866618
E7: Sin lugar | K7: Total | L7: 23249
A29: Fuente: Cuadro 13.

Sheet 14
A1: CUADRO 14
A2: COSTA RICA: NACIMIENTOS INSCRITOS, POR PROVINCIA Y PARTIDO ESPECIAL
A3: SEGÚN MES, AL 31 DE DICIEMBRE DE 2018
A5: Mes | B5: Total | C5: San José | D5: Alajuela | E5: Cartago | F5: Heredia | G5: Guanacaste | H5: Puntarenas | I5: Limón | J5: Partido especial 1/
A7: Costa Rica | B7: =SUM(B9:B20) -> 49355 | C7: =SUM(C9:C20) -> 15902 | D7: =SUM(D9:D20) -> 8853 | E7: 5359 | F7: 3991 | G7: 3601 | H7: 4660 | I7: 5031 | J7: 1958
A9: Enero | B9: =SUM(C9:J9) -> 5754 | C9: 3440 | D9: 525 | E9: 372 | F9: 264 | G9: 165 | H9: 249 | I9: 502 | J9: 237
A10: Febrero | B10: =SUM(C10:J10) -> 6416 | C10: 2385 | D10: 684 | E10: 677 | F10: 744 | G10: 683 | H10: 547 | I10: 523 | J10: 173
A11: Marzo | B11: 2689 | C11: 1126 | D11: 425 | E11: 293 | F11: 91 | G11: 217 | H11: 312 | I11: 202 | J11: 23
A12: Abril | B12: 3420 | C12: 279 | D12: 328 | E12: 743 | F12: 1009 | G12: 358 | H12: 147 | I12: 408 | J12: 148
A13: Mayo | B13: 4372 | C13: 952 | D13: 783 | E13: 507 | F13: 419 | G13: 296 | H13: 758 | I13: 574 | J13: 83
A14: Junio | B14: =SUM(C14:J14) -> 4073 | C14: 1097 | D14: 871 | E14: 472 | F14: 258 | G14: 384 | H14: 553 | I14: 353 | J14: 85
A15: Julio | B15: 3648 | C15: 890 | D15: 888 | E15: 372 | F15: 198 | G15: 161 | H15: 387 | I15: 533 | J15: 219
A16: Agosto | B16: 4344 | C16: 1447 | D16: 961 | E16: 305 | F16: 239 | G16: 258 | H16: 431 | I16: 419 | J16: 284
A17: Setiembre | B17: 3752 | C17: 1141 | D17: 983 | E17: 375 | F17: 206 | G17: 271 | H17: 322 | I17: 280 | J17: 174
A18: Octubre | B18: 4412 | C18: 1622 | D18: 960 | E18: 394 | F18: 96 | G18: 304 | H18: 316 | I18: 432 | J18: 288
A19: Noviembre | B19: 3855 | C19: 886 | D19: 856 | E19: 571 | F19: 172 | G19: 266 | H19: 368 | I19: 526 | J19: 210
A20: Diciembre | B20: =SUM(C20:J20) -> 2620 | C20: 637 | D20: 589 | E20: 278 | F20: 295 | G20: 238 | H20: 270 | I20: 279 | J20: 34
A23: 1/ Inscripción de nacimientos de costarricenses nacidos en el extranjero.
A25: Fuente: Sección de Inscripciones del Tribunal Supremo de Elecciones.

Sheet 15
A1: CUADRO 15
A2: COSTA RICA: DEFUNCIONES INSCRITAS, POR PROVINCIA, SEGÚN MES
A3: AL 31 DE DICIEMBRE DE 2018
A5: Mes | B5: Total | C5: San José | D5: Alajuela | E5: Cartago | F5: Heredia | G5: Guanacaste | H5: Puntarenas | I5: Limón
A7: Costa Rica | B7: =SUM(B9:B20) -> 24299 | C7: =SUM(C9:C20) -> 7086 | D7: 4479 | E7: 3116 | F7: 2480 | G7: 2744 | H7: 2521 | I7: 1873
A9: Enero | B9: =SUM(C9:I9) -> 3238 | C9: 1233 | D9: 720 | E9: 331 | F9: 177 | G9: 373 | H9: 189 | I9: 215
A10: Febrero | B10: =SUM(C10:I10) -> 2181 | C10: 510 | D10: 435 | E10: 334 | F10: 235 | G10: 282 | H10: 216 | I10: 169
A11: Marzo | B11: 2129 | C11: 808 | D11: 384 | E11: 317 | F11: 200 | G11: 131 | H11: 195 | I11: 94
A12: Abril | B12: 1625 | C12: 122 | D12: 226 | E12: 265 | F12: 219 | G12: 298 | H12: 449 | I12: 46
A13: Mayo | B13: 1948 | C13: 319 | D13: 290 | E13: 243 | F13: 217 | G13: 334 | H13: 294 | I13: 251
A14: Junio | B14: 2257 | C14: 536 | D14: 365 | E14: 434 | F14: 372 | G14: 225 | H14: 193 | I14: 132
A15: Julio | B15: 1815 | C15: 460 | D15: 337 | E15: 243 | F15: 212 | G15: 167 | H15: 217 | I15: 179
A16: Agosto | B16: 2159 | C16: 836 | D16: 369 | E16: 217 | F16: 177 | G16: 180 | H16: 187 | I16: 193
A17: Setiembre | B17: 1591 | C17: 375 | D17: 349 | E17: 202 | F17: 185 | G17: 186 | H17: 143 | I17: 151
A18: Octubre | B18: 1834 | C18: 685 | D18: 358 | E18: 188 | F18: 180 | G18: 143 | H18: 124 | I18: 156
A19: Noviembre | B19: 2092 | C19: 805 | D19: 403 | E19: 203 | F19: 133 | G19: 166 | H19: 181 | I19: 201
A20: Diciembre | B20: 1430 | C20: 397 | D20: 243 | E20: 139 | F20: 173 | G20: 259 | H20: 133 | I20: 86
A23: Fuente: Sección de Inscripciones del Tribunal Supremo de Elecciones.

Sheet G8
A2: GRÁFICO 8 | K2: Nacimientos | L2: Defunciones
A3: COSTA RICA: NACIMIENTOS Y DEFUNCIONES INSCRITAS | K3: 49355 | L3: 24299
A4: POR MES, AL 31 DE DICIEMBRE DE 2018 | J4: ENE | K4: 5754 | L4: 3238
J5: FEB | K5: 6416 | L5: 2181
J6: MAR | K6: 2689 | L6: 2129
E7: Sin lugar | J7: ABR | K7: 3420 | L7: 1625
J8: MAY | K8: 4372 | L8: 1948
J9: JUN | K9: 4073 | L9: 2257
J10: JUL | K10: 3648 | L10: 1815
J11: AGO | K11: 4344 | L11: 2159
J12: SET | K12: 3752 | L12: 1591
J13: OCT | K13: 4412 | L13: 1834
J14: NOV | K14: 3855 | L14: 2092
J15: DIC | K15: 2620 | L15: 1430
A26: Fuente: Cuadros 14 y 15.

Sheet 16
A1: CUADRO 16
A2: COSTA RICA: MODIFICACIÓN DE ASIENTOS CIVILES POR MES, SEGÚN CLASE DE INSCRIPCIÓN
A3: AL 31 DE DICIEMBRE DE 2018
A5: Clase de inscripción 1/ | B5: Total | C5: Mes
C6: Enero | D6: Febrero | E6: Marzo | F6: Abril | G6: Mayo | H6: Junio | I6: Julio | J6: Agosto | K6: Setiembre | L6: Octubre | M6: Noviembre | N6: Diciembre
A8: Total | B8: =SUM(C8:N8) -> 48385 | C8: =SUM(C10:C32) -> 1634 | D8: =SUM(D10:D32) -> 1711 | E8: 4925 | F8: 4128 | G8: 3889 | H8: 5154 | I8: 4767 | J8: 5313 | K8: 4272 | L8: 4514 | M8: 5850 | N8: 2228
A10: Adopciones | B10: =SUM(C10:N10) -> 227 | C10: 17 | D10: 15 | E10: 12 | F10: 23 | G10: 27 | H10: 19 | I10: 19 | J10: 31 | K10: 18 | L10: 11 | M10: 24 | N10: 11
A11: Cambio de nombre | B11: =SUM(C11:N11) -> 77 | C11: 5 | D11: 6 | E11: 5 | F11: 4 | G11: 7 | H11: 9 | I11: 4 | J11: 7 | K11: 8 | L11: 3 | M11: 14 | N11: 5
A12: Curatela 2/ | B12: 63 | C12: 0 | D12: 5 | E12: 3 | F12: 0 | G12: 5 | H12: 12 | I12: 7 | J12: 17 | K12: 2 | L12: 4 | M12: 6 | N12: 2
A13: Declaración de parentalidad | B13: 72 | C13: 1 | D13: 2 | E13: 3 | F13: 2 | G13: 15 | H13: 9 | I13: 12 | J13: 12 | K13: 6 | L13: 4 | M13: 6 | N13: 0
A14: Dejar sin efecto la sentencia | B14: 3 | C14: 0 | D14: 1 | E14: 0 | F14: 0 | G14: 0 | H14: 1 | I14: 0 | J14: 1 | K14: 0 | L14: 0 | M14: 0 | N14: 0
A15: Depósito judicial | B15: 152 | C15: 1 | D15: 14 | E15: 13 | F15: 12 | G15: 4 | H15: 14 | I15: 9 | J15: 31 | K15: 21 | L15: 18 | M15: 9 | N15: 6
A16: Divorcio | B16: 11003 | C16: 312 | D16: 491 | E16: 1266 | F16: 971 | G16: 1181 | H16: 972 | I16: 1458 | J16: 1333 | K16: 968 | L16: 584 | M16: 994 | N16: 473
A17: Exequátur de divorcio 3/ | B17: 64 | C17: 1 | D17: 7 | E17: 8 | F17: 3 | G17: 7 | H17: 2 | I17: 8 | J17: 9 | K17: 3 | L17: 8 | M17: 5 | N17: 3
A18: Guarda crianza y educación | B18: 7 | C18: 3 | D18: 0 | E18: 2 | F18: 0 | G18: 0 | H18: 0 | I18: 0 | J18: 0 | K18: 2 | L18: 0 | M18: 0 | N18: 0
A19: Impugnación de paternidad | B19: 239 | C19: 2 | D19: 6 | E19: 37 | F19: 31 | G19: 20 | H19: 16 | I19: 25 | J19: 22 | K19: 17 | L19: 23 | M19: 23 | N19: 17
A20: Impugnación de reconocimiento | B20: 152 | C20: 4 | D20: 8 | E20: 10 | F20: 7 | G20: 11 | H20: 16 | I20: 18 | J20: 38 | K20: 6 | L20: 9 | M20: 16 | N20: 9
A21: Insania 4/ | B21: 47 | C21: 4 | D21: 1 | E21: 13 | F21: 0 | G21: 2 | H21: 2 | I21: 0 | J21: 5 | K21: 6 | L21: 4 | M21: 8 | N21: 2
A22: Investigación de parentalidad | B22: 250 | C22: 1 | D22: 14 | E22: 17 | F22: 10 | G22: 38 | H22: 29 | I22: 31 | J22: 38 | K22: 17 | L22: 21 | M22: 23 | N22: 11
A23: Nombramiento de tutor | B23: 33 | C23: 0 | D23: 0 | E23: 10 | F23: 3 | G23: 3 | H23: 1 | I23: 1 | J23: 2 | K23: 4 | L23: 4 | M23: 3 | N23: 2
A24: Nulidad de matrinomio | B24: 64 | C24: 0 | D24: 7 | E24: 4 | F24: 3 | G24: 5 | H24: 3 | I24: 6 | J24: 3 | K24: 5 | L24: 16 | M24: 6 | N24: 6
A25: Ocurso | B25: 7507 | C25: 504 | D25: 256 | E25: 766 | F25: 461 | G25: 590 | H25: 946 | I25: 640 | J25: 884 | K25: 638 | L25: 537 | M25: 1173 | N25: 112
A26: Pérdida de patria potestad | B26: 140 | C26: 5 | D26: 6 | E26: 3 | F26: 1 | G26: 18 | H26: 25 | I26: 17 | J26: 27 | K26: 16 | L26: 1 | M26: 13 | N26: 8
A27: Presunción de muerte | B27: 4 | C27: 0 | D27: 1 | E27: 0 | F27: 0 | G27: 1 | H27: 0 | I27: 0 | J27: 2 | K27: 0 | L27: 0 | M27: 0 | N27: 0
A28: Reconocimientos | B28: 21891 | C28: 342 | D28: 534 | E28: 2423 | F28: 2040 | G28: 1717 | H28: 2297 | I28: 2077 | J28: 2310 | K28: 1828 | L28: 2303 | M28: 2812 | N28: 1208
A29: Recuperación de nacionalidad | B29: 4 | C29: 0 | D29: 1 | E29: 0 | F29: 0 | G29: 0 | H29: 0 | I29: 0 | J29: 0 | K29: 2 | L29: 0 | M29: 1 | N29: 0
A30: Separación judicial | B30: 45 | C30: 4 | D30: 0 | E30: 6 | F30: 0 | G30: 2 | H30: 2 | I30: 10 | J30: 4 | K30: 1 | L30: 12 | M30: 1 | N30: 3
A31: Suspensión de patria potestad | B31: 58 | C31: 3 | D31: 4 | E31: 5 | F31: 5 | G31: 1 | H31: 11 | I31: 4 | J31: 11 | K31: 2 | L31: 8 | M31: 3 | N31: 1
A32: Otra | B32: 6283 | C32: 425 | D32: 332 | E32: 319 | F32: 552 | G32: 235 | H32: 768 | I32: 421 | J32: 526 | K32: 702 | L32: 944 | M32: 710 | N32: 349
A35: 1/ Todos los datos se refieren a hechos inscritos en el mes respectivo, no así a los ocurridos.
A37: 2/ Sistema de protección y guarda de las siguientes personas y es la institución jurídica creada por el amparo de la persona y los bienes del mayor de edad incapacitado.
A39: 3/ Reconocimiento de divorcio extranjero.
A41: 4/ Personas con demencia.
A43: Fuente: Sección de Actos Jurídicos del Tribunal Supremo de Elecciones.

Sheet G7
A2: GRÁFICO 7 | K2: MATRIMONIOS vs DIVORCIOS
A3: COSTA RICA: MATRIMONIOS Y DIVORCIOS INSCRITOS | L3: Matrimonios | M3: Divorcios
A4: POR MES, AL 31 DE DICIEMBRE DE 2018 | K4: ENE | L4: 1986 | M4: 312
K5: FEB | L5: 1776 | M5: 491
K6: MAR | L6: 2068 | M6: 1266
K7: ABR | L7: 2049 | M7: 971
K8: MAY | L8: 1932 | M8: 1181
K9: JUN | L9: 1975 | M9: 972
K10: JUL | L10: 1914 | M10: 1458
K11: AGO | L11: 1604 | M11: 1333
K12: SET | L12: 1591 | M12: 968
K13: OCT | L13: 1527 | M13: 584
K14: NOV | L14: 1967 | M14: 994
K15: DIC | L15: 2860 | M15: 473
L16: 23249 | M16: 11003
A30: Fuente: Cuadros 13 y 16.

Sheet 17
A1: CUADRO 17
A2: COSTA RICA: CARTAS DE NATURALIZACIÓN ENTREGADAS POR MES, SEGÚN SEXO Y TIPO DE LEY
A3: AL 31 DE DICIEMBRE DE 2018
A5: Cartas entregadas | B5: Total | C5: Mes
C6: Enero | D6: Febrero | E6: Marzo | F6: Abril | G6: Mayo | H6: Junio | I6: Julio | J6: Agosto | K6: Setiembre | L6: Octubre | M6: Noviembre | N6: Diciembre
A8: Sexo | B8: =SUM(C8:N8) -> 5831 | C8: =SUM(C9:C10) -> 530 | D8: =SUM(D9:D10) -> 562 | E8: 431 | F8: 412 | G8: 329 | H8: 343 | I8: 535 | J8: 559 | K8: 562 | L8: 530 | M8: 531 | N8: 507
A9: Hombres | B9: =SUM(C9:N9) -> 2766 | C9: 314 | D9: 233 | E9: 179 | F9: 165 | G9: 144 | H9: 159 | I9: 319 | J9: 323 | K9: 241 | L9: 227 | M9: 235 | N9: 227
A10: Mujeres | B10: =SUM(C10:N10) -> 3065 | C10: 216 | D10: 329 | E10: 252 | F10: 247 | G10: 185 | H10: 184 | I10: 216 | J10: 236 | K10: 321 | L10: 303 | M10: 296 | N10: 280
A12: Tipo de ley | B12: =SUM(C12:N12) -> 5831 | C12: =SUM(C13:C16) -> 530 | D12: =SUM(D13:D16) -> 562 | E12: 431 | F12: 412 | G12: 329 | H12: 343 | I12: 535 | J12: 559 | K12: 562 | L12: 530 | M12: 531 | N12: 507
A13: Matrimonio | B13: =SUM(C13:N13) -> 3293 | C13: 328 | D13: 317 | E13: 160 | F13: 279 | G13: 181 | H13: 161 | I13: 360 | J13: 360 | K13: 307 | L13: 289 | M13: 309 | N13: 242
A14: 1155 | B14: =SUM(C14:N14) -> 1882 | C14: 158 | D14: 178 | E14: 217 | F14: 95 | G14: 102 | H14: 146 | I14: 131 | J14: 133 | K14: 185 | L14: 171 | M14: 166 | N14: 200
A15: Trascendencia | B15: =SUM(C15:N15) -> 349 | C15: 31 | D15: 36 | E15: 27 | F15: 18 | G15: 22 | H15: 20 | I15: 21 | J15: 51 | K15: 42 | L15: 36 | M15: 18 | N15: 27
A16: Otras | B16: =SUM(C16:N16) -> 307 | C16: 13 | D16: 31 | E16: 27 | F16: 20 | G16: 24 | H16: 16 | I16: 23 | J16: 15 | K16: 28 | L16: 34 | M16: 38 | N16: 38
A19: Fuente: Sección de Opciones y Naturalizaciones del Tribunal Supremo de Elecciones.

Sheet 18
A2: CUADRO 18
A3: COSTA RICA: CARTAS DE NATURALIZACIÓN ENTREGADAS, POR MES
A4: SEGÚN PAÍS DE ORIGEN, AL 31 DE DICIEMBRE DE 2018
A6: País de origen | B6: Total | C6: Enero | D6: Febrero | E6: Marzo | F6: Abril | G6: Mayo | H6: Junio | I6: Julio | J6: Agosto | K6: Setiembre | L6: Octubre | M6: Noviembre | N6: Diciembre
A8: Total | B8: =SUM(B10:B73) -> 5831 | C8: 530 | D8: 562 | E8: 431 | F8: 412 | G8: 329 | H8: 343 | I8: 535 | J8: 559 | K8: 562 | L8: 530 | M8: 531 | N8: 507
A10: Alemania | B10: =SUM(C10:N10) -> 2 | C10: 0 | D10: 1 | E10: 0 | F10: 0 | G10: 0 | H10: 0 | I10: 0 | J10: 1 | K10: 0 | L10: 0 | M10: 0 | N10: 0
A11: Apátrida | B11: 1 | C11: 0 | D11: 0 | E11: 1 | F11: 0 | G11: 0 | H11: 0 | I11: 0 | J11: 0 | K11: 0 | L11: 0 | M11: 0 | N11: 0
A12: Argelia | B12: 2 | C12: 0 | D12: 0 | E12: 0 | F12: 1 | G12: 0 | H12: 1 | I12: 0 | J12: 0 | K12: 0 | L12: 0 | M12: 0 | N12: 0
A13: Argentina | B13: 21 | C13: 4 | D13: 0 | E13: 3 | F13: 0 | G13: 2 | H13: 3 | I13: 0 | J13: 1 | K13: 0 | L13: 1 | M13: 4 | N13: 3
A14: Austria | B14: 1 | C14: 0 | D14: 0 | E14: 0 | F14: 1 | G14: 0 | H14: 0 | I14: 0 | J14: 0 | K14: 0 | L14: 0 | M14: 0 | N14: 0
A15: Bélgica | B15: 4 | C15: 0 | D15: 0 | E15: 0 | F15: 0 | G15: 0 | H15: 0 | I15: 0 | J15: 2 | K15: 1 | L15: 0 | M15: 1 | N15: 0
A16: Belice | B16: 3 | C16: 1 | D16: 0 | E16: 1 | F16: 0 | G16: 0 | H16: 0 | I16: 0 | J16: 0 | K16: 1 | L16: 0 | M16: 0 | N16: 0
A17: Bolivia | B17: 10 | C17: 2 | D17: 1 | E17: 1 | F17: 0 | G17: 0 | H17: 0 | I17: 2 | J17: 0 | K17: 1 | L17: 1 | M17: 2 | N17: 0
A18: Brasil | B18: 8 | C18: 0 | D18: 4 | E18: 0 | F18: 0 | G18: 1 | H18: 0 | I18: 0 | J18: 0 | K18: 0 | L18: 1 | M18: 2 | N18: 0
A19: Canadá | B19: 10 | C19: 1 | D19: 1 | E19: 0 | F19: 1 | G19: 0 | H19: 0 | I19: 3 | J19: 0 | K19: 0 | L19: 2 | M19: 1 | N19: 1
A20: Chile | B20: 22 | C20: 3 | D20: 5 | E20: 1 | F20: 1 | G20: 2 | H20: 2 | I20: 1 | J20: 1 | K20: 0 | L20: 0 | M20: 1 | N20: 5
A21: China | B21: 38 | C21: 9 | D21: 2 | E21: 2 | F21: 1 | G21: 0 | H21: 3 | I21: 1 | J21: 5 | K21: 0 | L21: 5 | M21: 5 | N21: 5
A22: Colombia | B22: 594 | C22: 46 | D22: 55 | E22: 51 | F22: 52 | G22: 34 | H22: 38 | I22: 57 | J22: 49 | K22: 61 | L22: 58 | M22: 51 | N22: 42
A23: Cuba | B23: 107 | C23: 6 | D23: 6 | E23: 10 | F23: 10 | G23: 9 | H23: 12 | I23: 7 | J23: 7 | K23: 8 | L23: 12 | M23: 12 | N23: 8
A24: Ecuador | B24: 38 | C24: 4 | D24: 3 | E24: 5 | F24: 2 | G24: 0 | H24: 3 | I24: 4 | J24: 1 | K24: 6 | L24: 5 | M24: 3 | N24: 2
A25: Egipto | B25: 4 | C25: 0 | D25: 0 | E25: 1 | F25: 1 | G25: 0 | H25: 0 | I25: 1 | J25: 0 | K25: 1 | L25: 0 | M25: 0 | N25: 0
A26: El Salvador | B26: 246 | C26: 17 | D26: 25 | E26: 16 | F26: 16 | G26: 10 | H26: 10 | I26: 18 | J26: 23 | K26: 32 | L26: 23 | M26: 26 | N26: 30
A27: Eslovia | B27: 1 | C27: 0 | D27: 1 | E27: 0 | F27: 0 | G27: 0 | H27: 0 | I27: 0 | J27: 0 | K27: 0 | L27: 0 | M27: 0 | N27: 0
A28: España | B28: 42 | C28: 6 | D28: 2 | E28: 3 | F28: 6 | G28: 5 | H28: 5 | I28: 2 | J28: 1 | K28: 3 | L28: 3 | M28: 3 | N28: 3
A29: Estados Unidos | B29: 142 | C29: 12 | D29: 11 | E29: 7 | F29: 9 | G29: 10 | H29: 11 | I29: 20 | J29: 14 | K29: 11 | L29: 8 | M29: 17 | N29: 12
A30: Filipinas | B30: 6 | C30: 0 | D30: 1 | E30: 0 | F30: 1 | G30: 0 | H30: 0 | I30: 1 | J30: 0 | K30: 0 | L30: 1 | M30: 0 | N30: 2
A31: Francia | B31: 20 | C31: 3 | D31: 1 | E31: 1 | F31: 3 | G31: 3 | H31: 0 | I31: 3 | J31: 0 | K31: 1 | L31: 2 | M31: 2 | N31: 1
A32: Grecia | B32: 1 | C32: 0 | D32: 0 | E32: 0 | F32: 0 | G32: 0 | H32: 0 | I32: 0 | J32: 0 | K32: 0 | L32: 0 | M32: 0 | N32: 1
A33: Guatemala | B33: 59 | C33: 8 | D33: 6 | E33: 4 | F33: 9 | G33: 2 | H33: 1 | I33: 6 | J33: 8 | K33: 7 | L33: 2 | M33: 3 | N33: 3
A34: Guyana | B34: 2 | C34: 0 | D34: 1 | E34: 0 | F34: 0 | G34: 0 | H34: 0 | I34: 0 | J34: 0 | K34: 0 | L34: 1 | M34: 0 | N34: 0
A35: Haití | B35: 2 | C35: 0 | D35: 1 | E35: 0 | F35: 0 | G35: 0 | H35: 0 | I35: 1 | J35: 0 | K35: 0 | L35: 0 | M35: 0 | N35: 0
A36: Honduras | B36: 111 | C36: 9 | D36: 12 | E36: 9 | F36: 7 | G36: 2 | H36: 6 | I36: 7 | J36: 6 | K36: 15 | L36: 11 | M36: 13 | N36: 14
A37: Hungria | B37: 1 | C37: 0 | D37: 0 | E37: 0 | F37: 0 | G37: 0 | H37: 0 | I37: 0 | J37: 0 | K37: 0 | L37: 0 | M37: 0 | N37: 1
A38: India | B38: 4 | C38: 0 | D38: 1 | E38: 1 | F38: 0 | G38: 0 | H38: 0 | I38: 0 | J38: 0 | K38: 0 | L38: 1 | M38: 0 | N38: 1
A39: Irán | B39: 3 | C39: 0 | D39: 1 | E39: 1 | F39: 0 | G39: 1 | H39: 0 | I39: 0 | J39: 0 | K39: 0 | L39: 0 | M39: 0 | N39: 0
A40: Irlanda | B40: 6 | C40: 0 | D40: 0 | E40: 4 | F40: 0 | G40: 0 | H40: 0 | I40: 0 | J40: 1 | K40: 1 | L40: 0 | M40: 0 | N40: 0
A41: Israel | B41: 5 | C41: 0 | D41: 2 | E41: 1 | F41: 1 | G41: 0 | H41: 0 | I41: 0 | J41: 0 | K41: 0 | L41: 1 | M41: 0 | N41: 0
A42: Italia | B42: 10 | C42: 0 | D42: 0 | E42: 0 | F42: 0 | G42: 0 | H42: 2 | I42: 1 | J42: 1 | K42: 1 | L42: 3 | M42: 1 | N42: 1
A43: Jamaica | B43: 3 | C43: 0 | D43: 0 | E43: 0 | F43: 1 | G43: 0 | H43: 0 | I43: 0 | J43: 0 | K43: 1 | L43: 0 | M43: 1 | N43: 0
A44: Jordania | B44: 2 | C44: 0 | D44: 0 | E44: 0 | F44: 1 | G44: 0 | H44: 0 | I44: 0 | J44: 0 | K44: 0 | L44: 1 | M44: 0 | N44: 0
A45: Kazajistán | B45: 1 | C45: 0 | D45: 0 | E45: 0 | F45: 0 | G45: 0 | H45: 1 | I45: 0 | J45: 0 | K45: 0 | L45: 0 | M45: 0 | N45: 0
A46: Líbano | B46: 5 | C46: 0 | D46: 0 | E46: 0 | F46: 1 | G46: 0 | H46: 1 | I46: 0 | J46: 0 | K46: 1 | L46: 0 | M46: 1 | N46: 1
A47: México | B47: 45 | C47: 2 | D47: 4 | E47: 6 | F47: 6 | G47: 1 | H47: 1 | I47: 3 | J47: 5 | K47: 1 | L47: 9 | M47: 4 | N47: 3
A48: Mozambique | B48: 1 | C48: 0 | D48: 0 | E48: 0 | F48: 0 | G48: 0 | H48: 0 | I48: 1 | J48: 0 | K48: 0 | L48: 0 | M48: 0 | N48: 0
A49: Nicaragua | B49: 3617 | C49: 343 | D49: 367 | E49: 275 | F49: 248 | G49: 209 | H49: 218 | I49: 345 | J49: 369 | K49: 332 | L49: 305 | M49: 314 | N49: 292
A50: Nueva Zelanda | B50: 1 | C50: 0 | D50: 1 | E50: 0 | F50: 0 | G50: 0 | H50: 0 | I50: 0 | J50: 0 | K50: 0 | L50: 0 | M50: 0 | N50: 0
A51: Palestina | B51: 2 | C51: 0 | D51: 0 | E51: 0 | F51: 0 | G51: 0 | H51: 0 | I51: 0 | J51: 0 | K51: 0 | L51: 0 | M51: 1 | N51: 1
A52: Panamá | B52: 87 | C52: 8 | D52: 2 | E52: 6 | F52: 6 | G52: 6 | H52: 6 | I52: 10 | J52: 7 | K52: 10 | L52: 13 | M52: 9 | N52: 4
A53: Paraguay | B53: 3 | C53: 0 | D53: 1 | E53: 0 | F53: 0 | G53: 0 | H53: 0 | I53: 0 | J53: 1 | K53: 0 | L53: 0 | M53: 1 | N53: 0
A54: Perú | B54: 69 | C54: 2 | D54: 5 | E54: 6 | F54: 5 | G54: 7 | H54: 6 | I54: 4 | J54: 8 | K54: 3 | L54: 9 | M54: 7 | N54: 7
A55: Portugal | B55: 6 | C55: 1 | D55: 2 | E55: 0 | F55: 0 | G55: 0 | H55: 0 | I55: 0 | J55: 0 | K55: 0 | L55: 3 | M55: 0 | N55: 0
A56: Puerto Rico | B56: 1 | C56: 1 | D56: 0 | E56: 0 | F56: 0 | G56: 0 | H56: 0 | I56: 0 | J56: 0 | K56: 0 | L56: 0 | M56: 0 | N56: 0
A57: República Dominicana | B57: 125 | C57: 8 | D57: 6 | E57: 3 | F57: 10 | G57: 4 | H57: 0 | I57: 14 | J57: 13 | K57: 20 | L57: 15 | M57: 15 | N57: 17
A58: Rumanía | B58: 2 | C58: 0 | D58: 0 | E58: 0 | F58: 0 | G58: 0 | H58: 0 | I58: 0 | J58: 0 | K58: 0 | L58: 0 | M58: 2 | N58: 0
A59: Rusia | B59: 4 | C59: 0 | D59: 1 | E59: 0 | F59: 0 | G59: 0 | H59: 0 | I59: 1 | J59: 0 | K59: 1 | L59: 0 | M59: 1 | N59: 0
A60: Siria | B60: 3 | C60: 0 | D60: 1 | E60: 0 | F60: 0 | G60: 0 | H60: 0 | I60: 0 | J60: 1 | K60: 0 | L60: 1 | M60: 0 | N60: 0
A61: Sudáfrica | B61: 1 | C61: 0 | D61: 0 | E61: 0 | F61: 0 | G61: 0 | H61: 0 | I61: 0 | J61: 0 | K61: 0 | L61: 1 | M61: 0 | N61: 0
A62: Suiza | B62: 10 | C62: 1 | D62: 2 | E62: 0 | F62: 2 | G62: 1 | H62: 0 | I62: 2 | J62: 0 | K62: 0 | L62: 0 | M62: 1 | N62: 1
A63: Surinan | B63: 1 | C63: 0 | D63: 1 | E63: 0 | F63: 0 | G63: 0 | H63: 0 | I63: 0 | J63: 0 | K63: 0 | L63: 0 | M63: 0 | N63: 0
A64: Tailandia | B64: 1 | C64: 0 | D64: 0 | E64: 0 | F64: 0 | G64: 0 | H64: 1 | I64: 0 | J64: 0 | K64: 0 | L64: 0 | M64: 0 | N64: 0
A65: Taiwán | B65: 11 | C65: 2 | D65: 2 | E65: 0 | F65: 0 | G65: 2 | H65: 0 | I65: 3 | J65: 0 | K65: 0 | L65: 0 | M65: 1 | N65: 1
A66: Trinidad y Tobago | B66: 3 | C66: 0 | D66: 0 | E66: 1 | F66: 0 | G66: 0 | H66: 0 | I66: 1 | J66: 0 | K66: 0 | L66: 1 | M66: 0 | N66: 0
A67: Turquía | B67: 1 | C67: 0 | D67: 0 | E67: 0 | F67: 0 | G67: 0 | H67: 0 | I67: 0 | J67: 0 | K67: 1 | L67: 0 | M67: 0 | N67: 0
A68: Ucrania | B68: 2 | C68: 0 | D68: 0 | E68: 1 | F68: 0 | G68: 0 | H68: 0 | I68: 0 | J68: 0 | K68: 0 | L68: 0 | M68: 0 | N68: 1
A69: Uganda | B69: 1 | C69: 0 | D69: 0 | E69: 0 | F69: 0 | G69: 0 | H69: 1 | I69: 0 | J69: 0 | K69: 0 | L69: 0 | M69: 0 | N69: 0
A70: Uruguay | B70: 9 | C70: 1 | D70: 1 | E70: 1 | F70: 1 | G70: 0 | H70: 0 | I70: 1 | J70: 0 | K70: 2 | L70: 0 | M70: 1 | N70: 1
A71: Venezuela | B71: 199 | C71: 0 | D71: 0 | E71: 0 | F71: 0 | G71: 0 | H71: 11 | I71: 15 | J71: 34 | K71: 40 | L71: 31 | M71: 25 | N71: 43
A72: Vietnam | B72: 87 | C72: 30 | D72: 23 | E72: 9 | F72: 8 | G72: 17 | H72: 0 | I72: 0 | J72: 0 | K72: 0 | L72: 0 | M72: 0 | N72: 0
A73: Yemen | B73: 2 | C73: 0 | D73: 0 | E73: 0 | F73: 1 | G73: 1 | H73: 0 | I73: 0 | J73: 0 | K73: 0 | L73: 0 | M73: 0 | N73: 0
A76: FUENTE: Sección de Opciones y Naturalizaciones del Tribunal Supremo de Elecciones.

Sheet 19
A1: CUADRO 19
A2: COSTA RICA: TARJETAS DE IDENTIDAD DE MENORES IMPRESAS
A3: POR PROVINCIA, SEGÚN MES, AL 31 DE DICIEMBRE DE 2018
A5: Mes | B5: Total | C5: Provincia
C6: San José | D6: Alajuela | E6: Cartago | F6: Heredia | G6: Guanacaste | H6: Puntarenas | I6: Limón
A8: Total | B8: =SUM(C8:I8) -> 149463 | C8: =SUM(C10:C21) -> 49356 | D8: =SUM(D10:D21) -> 30008 | E8: 13099 | F8: 12882 | G8: 11439 | H8: 15953 | I8: 16726
A10: Enero | B10: =SUM(C10:I10) -> 17051 | C10: 5623 | D10: 3470 | E10: 1354 | F10: 1559 | G10: 1312 | H10: 1918 | I10: 1815
A11: Febrero | B11: =SUM(C11:I11) -> 14523 | C11: 4108 | D11: 2995 | E11: 1081 | F11: 1209 | G11: 1357 | H11: 1827 | I11: 1946
A12: Marzo | B12: 9448 | C12: 3073 | D12: 1964 | E12: 844 | F12: 773 | G12: 735 | H12: 1084 | I12: 975
A13: Abril | B13: 9620 | C13: 3206 | D13: 1881 | E13: 919 | F13: 766 | G13: 750 | H13: 1051 | I13: 1047
A14: Mayo | B14: 10013 | C14: 3206 | D14: 2067 | E14: 963 | F14: 773 | G14: 698 | H14: 1129 | I14: 1177
A15: Junio | B15: 10035 | C15: 3412 | D15: 2024 | E15: 931 | F15: 802 | G15: 716 | H15: 1011 | I15: 1139
A16: Julio | B16: 13721 | C16: 4968 | D16: 2653 | E16: 1314 | F16: 1284 | G16: 957 | H16: 1280 | I16: 1265
A17: Agosto | B17: 11156 | C17: 3897 | D17: 2128 | E17: 1020 | F17: 1013 | G17: 787 | H17: 1079 | I17: 1232
A18: Setiembre | B18: 9946 | C18: 3223 | D18: 2122 | E18: 1076 | F18: 980 | G18: 717 | H18: 918 | I18: 910
A19: Octubre | B19: 15209 | C19: 5260 | D19: 3177 | E19: 1431 | F19: 1346 | G19: 950 | H19: 1417 | I19: 1628
A20: Noviembre | B20: 15506 | C20: 5146 | D20: 2863 | E20: 1261 | F20: 1324 | G20: 1174 | H20: 1833 | I20: 1905
A21: Diciembre | B21: 13235 | C21: 4234 | D21: 2664 | E21: 905 | F21: 1053 | G21: 1286 | H21: 1406 | I21: 1687
A24: Fuente: Departamento Civil y Coordinación de Servicios Regionales del Tribunal Supremo de Elecciones.

Sheet 20
A1: CUADRO 20
A2: COSTA RICA: CERTIFICACIONES SOLICITADAS VÍA INTERNET
A3: POR TIPO DE SOLICITUD, SEGÚN MES
A4: AL 31 DE DICIEMBRE DE 2018
A6: Mes | B6: Total | C6: Tipo de solicitud
C7: Nacimiento | D7: Matrimonio | E7: Defunción | F7: No aparece matrimonio
A9: Total | B9: =SUM(C9:F9) -> 59970 | C9: =SUM(C11:C22) -> 37555 | D9: =SUM(D11:D22) -> 8788 | E9: =SUM(E11:E22) -> 7036 | F9: =SUM(F11:F22) -> 6591
A11: Enero | B11: =SUM(C11:F11) -> 5523 | C11: 3326 | D11: 814 | E11: 709 | F11: 674
A12: Febrero | B12: =SUM(C12:F12) -> 5866 | C12: 3494 | D12: 839 | E12: 896 | F12: 637
A13: Marzo | B13: 4939 | C13: 3001 | D13: 798 | E13: 529 | F13: 611
A14: Abril | B14: 4865 | C14: 2736 | D14: 858 | E14: 599 | F14: 672
A15: Mayo | B15: 4570 | C15: 2684 | D15: 775 | E15: 624 | F15: 487
A16: Junio | B16: 4072 | C16: 2452 | D16: 655 | E16: 563 | F16: 402
A17: Julio | B17: 4615 | C17: 2934 | D17: 714 | E17: 498 | F17: 469
A18: Agosto | B18: 5628 | C18: 3897 | D18: 705 | E18: 561 | F18: 465
A19: Setiembre | B19: 4170 | C19: 2485 | D19: 653 | E19: 607 | F19: 425
A20: Octubre | B20: 5123 | C20: 3103 | D20: 827 | E20: 541 | F20: 652
A21: Noviembre | B21: 6475 | C21: 4467 | D21: 742 | E21: 500 | F21: 766
A22: Diciembre | B22: 4124 | C22: 2976 | D22: 408 | E22: 409 | F22: 331
A25: Fuente: Departamento Civil del Tribunal Supremo de Elecciones.

Sheet 21
A1: CUADRO 21
A2: COSTA RICA: INGRESO DE SOLICITUDES DE DETERMINACIÓN DE PATERNIDAD
A3: POR PROVINCIA, SEGÚN MES, AL 31 DE DICIEMBRE DE 2018
A5: Mes | B5: Total | C5: San José | D5: Alajuela | E5: Cartago | F5: Heredia | G5: Guanacaste | H5: Puntarenas | I5: Limón | J5: Partido Especial 1/ | K5: Casos especiales 2/
A7: Total | B7: =SUM(B9:B20) -> 5277 | C7: =SUM(C9:C20) -> 1593 | D7: =SUM(D9:D20) -> 881 | E7: 431 | F7: 343 | G7: 523 | H7: 588 | I7: 813 | J7: =SUM(J9:J20) -> 30 | K7: =SUM(K9:K20) -> 75
A9: Enero | B9: =SUM(C9:K9) -> 342 | C9: 133 | D9: 47 | E9: 31 | F9: 28 | G9: 32 | H9: 33 | I9: 32 | J9: 6 | K9: 0
A10: Febrero | B10: 325 | C10: 131 | D10: 41 | E10: 23 | F10: 14 | G10: 36 | H10: 32 | I10: 47 | J10: 1 | K10: 0
A11: Marzo | B11: 797 | C11: 247 | D11: 163 | E11: 51 | F11: 44 | G11: 95 | H11: 86 | I11: 110 | J11: 1 | K11: 0
A12: Abril | B12: 525 | C12: 191 | D12: 77 | E12: 40 | F12: 33 | G12: 27 | H12: 59 | I12: 94 | J12: 4 | K12: 0
A13: Mayo | B13: 425 | C13: 114 | D13: 77 | E13: 35 | F13: 32 | G13: 52 | H13: 47 | I13: 60 | J13: 7 | K13: 1
A14: Junio | B14: 422 | C14: 119 | D14: 70 | E14: 26 | F14: 30 | G14: 51 | H14: 44 | I14: 79 | J14: 2 | K14: 1
A15: Julio | B15: 298 | C15: 99 | D15: 45 | E15: 27 | F15: 21 | G15: 14 | H15: 46 | I15: 45 | J15: 0 | K15: 1
A16: Agosto | B16: 505 | C16: 142 | D16: 95 | E16: 41 | F16: 35 | G16: 44 | H16: 44 | I16: 88 | J16: 0 | K16: 16
A17: Setiembre | B17: 393 | C17: 100 | D17: 67 | E17: 32 | F17: 39 | G17: 40 | H17: 49 | I17: 62 | J17: 0 | K17: 4
A18: Octubre | B18: 400 | C18: 84 | D18: 60 | E18: 48 | F18: 29 | G18: 40 | H18: 47 | I18: 68 | J18: 0 | K18: 24
A19: Noviembre | B19: 449 | C19: 112 | D19: 76 | E19: 29 | F19: 26 | G19: 55 | H19: 70 | I19: 55 | J19: 1 | K19: 25
A20: Diciembre | B20: 396 | C20: 121 | D20: 63 | E20: 48 | F20: 12 | G20: 37 | H20: 31 | I20: 73 | J20: 8 | K20: 3
A23: 1/ Inscripción de hijos o hijas de costarricenses nacidos en el extranjero.
A24: 2/ Casos que aun cuando no son trámites de Paternidad Responsable, se tramitan para efectos de otorgar cita de ADN, o casos en los que primero se necesita la Prueba de ADN, para proceder con la inscripción o no del nacimiento.
A26: Fuente: Sección de Inscripciones del Tribunal Supremo de Elecciones.

Sheet 22
A2: CUADRO 22
A3: COSTA RICA: INGRESO DE SOLICITUDES DE DETERMINACIÓN DE PATERNIDAD, POR MES
A4: SEGÚN NACIONALIDAD DE LOS PADRES, AL 31 DE DICIEMBRE DE 2018
A6: NACIONALIDAD | B6: TOTAL | C6: Enero | D6: Febrero | E6: Marzo | F6: Abril | G6: Mayo | H6: Junio | I6: Julio | J6: Agosto | K6: Setiembre | L6: Octubre | M6: Noviembre | N6: Diciembre
A8: TOTAL | B8: =B11+B15+B19+B23+B27+B31 -> 5277 | C8: 342 | D8: 325 | E8: 797 | F8: 525 | G8: 425 | H8: 422 | I8: 298 | J8: 505 | K8: 393 | L8: 400 | M8: 449 | N8: =N11+N15+N19+N23+N27+N31 -> 396
A10: Costa Rica
A11: Presunto padre | B11: =SUM(C11:N11) -> 4765 | C11: 328 | D11: 289 | E11: 707 | F11: 457 | G11: 378 | H11: 392 | I11: 291 | J11: 454 | K11: 347 | L11: 382 | M11: 381 | N11: 359
A12: Madre | B12: =SUM(C12:N12) -> 4859 | C12: 332 | D12: 288 | E12: 722 | F12: 469 | G12: 383 | H12: 396 | I12: 293 | J12: 455 | K12: 369 | L12: 384 | M12: 398 | N12: 370
A14: Nicaragua
A15: Presunto padre | B15: =SUM(C15:N15) -> 461 | C15: 14 | D15: 31 | E15: 87 | F15: 62 | G15: 40 | H15: 24 | I15: 5 | J15: 45 | K15: 43 | L15: 18 | M15: 60 | N15: 32
A16: Madre | B16: =SUM(C16:N16) -> 388 | C16: 10 | D16: 36 | E16: 69 | F16: 51 | G16: 40 | H16: 21 | I16: 4 | J16: 48 | K16: 22 | L16: 13 | M16: 48 | N16: 26
A18: Colombia
A19: Presunto padre | B19: =SUM(C19:N19) -> 13 | C19: 0 | D19: 1 | E19: 0 | F19: 1 | G19: 3 | H19: 1 | I19: 0 | J19: 1 | K19: 2 | L19: 0 | M19: 4 | N19: 0
A20: Madre | B20: =SUM(C20:N20) -> 6 | C20: 0 | D20: 1 | E20: 2 | F20: 1 | G20: 0 | H20: 0 | I20: 0 | J20: 1 | K20: 0 | L20: 0 | M20: 1 | N20: 0
A22: Panamá
A23: Presunto padre | B23: =SUM(C23:N23) -> 5 | C23: 0 | D23: 1 | E23: 0 | F23: 2 | G23: 0 | H23: 1 | I23: 0 | J23: 0 | K23: 0 | L23: 0 | M23: 0 | N23: 1
A24: Madre | B24: =SUM(C24:N24) -> 1 | C24: 0 | D24: 0 | E24: 1 | F24: 0 | G24: 0 | H24: 0 | I24: 0 | J24: 0 | K24: 0 | L24: 0 | M24: 0 | N24: 0
A26: Otros
A27: Presunto padre | B27: =SUM(C27:N27) -> 22 | C27: 0 | D27: 2 | E27: 1 | F27: 2 | G27: 2 | H27: 4 | I27: 2 | J27: 2 | K27: 1 | L27: 0 | M27: 3 | N27: =1+1+1 -> 3
A28: Madre | B28: =SUM(C28:N28) -> 18 | C28: 0 | D28: 0 | E28: 1 | F28: 3 | G28: 2 | H28: 3 | I28: 1 | J28: 1 | K28: 2 | L28: 3 | M28: 2 | N28: 0
A30: No Indica
A31: Presunto padre | B31: =SUM(C31:N31) -> 11 | C31: 0 | D31: 1 | E31: 2 | F31: 1 | G31: 2 | H31: 0 | I31: 0 | J31: 3 | K31: 0 | L31: 0 | M31: 1 | N31: 1
A32: Madre | B32: =SUM(C32:N32) -> 5 | C32: 0 | D32: 0 | E32: 2 | F32: 1 | G32: 0 | H32: 2 | I32: 0 | J32: 0 | K32: 0 | L32: 0 | M32: 0 | N32: 0
A35: Fuente: Sección de Inscripciones del Tribunal Supremo de Elecciones.

Sheet 23
A1: CUADRO 23
A2: COSTA RICA: RESULTADO DE PRUEBAS DE ADN PARA
A3: DETERMINAR LA PATERNIDAD, SEGÚN MES
A4: AL 31 DE DICIEMBRE DE 2018
A6: Mes | B6: Total | D6: Absoluto | I6: Porcentaje
D7: Positivo | F7: Negativo | I7: Positivo | K7: Negativo
A9: Total | B9: =SUM(B11:B22) -> 2763 | D9: =SUM(D11:D22) -> 1999 | E9: =SUM(E11:E22) -> 0 | F9: =SUM(F11:F22) -> 764 | I9: =+D9/B9*100 -> 72.34889613 | K9: =+F9/B9*100 -> 27.65110387
A11: Enero | B11: =SUM(D11:F11) -> 172 | D11: 115 | F11: 57 | I11: =+D11/B11*100 -> 66.86046512 | K11: =+F11/B11*100 -> 33.13953488
A12: Febrero | B12: =SUM(D12:F12) -> 261 | D12: 192 | F12: 69 | I12: =+D12/B12*100 -> 73.56321839 | K12: =+F12/B12*100 -> 26.43678161
A13: Marzo | B13: 193 | D13: 149 | F13: 44 | I13: 77.20207254 | K13: 22.79792746
A14: Abril | B14: 120 | D14: 72 | F14: 48 | I14: 60 | K14: 40
A15: Mayo | B15: 341 | D15: 269 | F15: 72 | I15: 78.8856305 | K15: 21.1143695
A16: Junio | B16: 310 | D16: 236 | F16: 74 | I16: 76.12903226 | K16: 23.87096774
A17: Julio | B17: 195 | D17: 146 | F17: 49 | I17: 74.87179487 | K17: 25.12820513
A18: Agosto | B18: 228 | D18: 136 | F18: 92 | I18: 59.64912281 | K18: 40.35087719
A19: Setiembre | B19: 201 | D19: 124 | F19: 77 | I19: 61.69154229 | K19: 38.30845771
A20: Octubre | B20: =SUM(D20:F20) -> 206 | D20: 160 | F20: 46 | I20: =+D20/B20*100 -> 77.66990291 | K20: =+F20/B20*100 -> 22.33009709
A21: Noviembre | B21: =SUM(D21:F21) -> 278 | D21: 204 | F21: 74 | I21: =+D21/B21*100 -> 73.38129496 | K21: =+F21/B21*100 -> 26.61870504
A22: Diciembre | B22: =SUM(D22:F22) -> 258 | D22: 196 | F22: 62 | I22: =+D22/B22*100 -> 75.96899225 | K22: =+F22/B22*100 -> 24.03100775
A25: Fuente: Sección de Inscripciones del Tribunal Supremo de Elecciones.

Sheet 24
A1: CUADRO 24
A2: COSTA RICA: CANTIDAD DE RESOLUCIONES, POR TIPO DE RESOLUCIÓN
A3: SEGÚN MES, AL 31 DE DICIEMBRE DE 2018
A5: Mes | B5: Total | C5: Tipo de resolución
C6: Electorales | D6: Inscripciones | E6: Municipales | F6: Naturalizaciones | G6: Ocursos, Paternidad y Otros | H6: Procedimientos Administrativos
A8: Total | B8: =SUM(C8:H8) -> 8900 | C8: =SUM(C10:C21) -> 222 | D8: 1195 | E8: 130 | F8: 6895 | G8: 88 | H8: 370
A10: Enero | B10: =SUM(C10:H10) -> 735 | C10: 29 | D10: 102 | E10: 12 | F10: 554 | G10: =6+1 -> 7 | H10: 31
A11: Febrero | B11: =SUM(C11:H11) -> 530 | C11: 32 | D11: 64 | E11: 11 | F11: 389 | G11: =7+1 -> 8 | H11: 26
A12: Marzo | B12: 736 | C12: 34 | D12: 89 | E12: 16 | F12: 559 | G12: =3+1 -> 4 | H12: 34
A13: Abril | B13: 473 | C13: 20 | D13: 63 | E13: 17 | F13: 343 | G13: =3+0 -> 3 | H13: 27
A14: Mayo | B14: 715 | C14: 15 | D14: 126 | E14: 6 | F14: 502 | G14: =18+1 -> 19 | H14: 47
A15: Junio | B15: 799 | C15: 22 | D15: 47 | E15: 17 | F15: 674 | G15: =4+2 -> 6 | H15: 33
A16: Julio | B16: 839 | C16: 11 | D16: 68 | E16: 10 | F16: 717 | G16: =8+4 -> 12 | H16: 21
A17: Agosto | B17: 932 | C17: 8 | D17: 126 | E17: 12 | F17: 771 | G17: =2+1 -> 3 | H17: 12
A18: Setiembre | B18: 681 | C18: 5 | D18: 151 | E18: 7 | F18: 485 | G18: =5+0 -> 5 | H18: 28
A19: Octubre | B19: 1053 | C19: 16 | D19: 184 | E19: 12 | F19: 785 | G19: =9+2 -> 11 | H19: 45
A20: Noviembre | B20: 819 | C20: 18 | D20: 65 | E20: 6 | F20: 682 | G20: =4+2 -> 6 | H20: 42
A21: Diciembre | B21: 588 | C21: 12 | D21: 110 | E21: 4 | F21: 434 | G21: =3+1 -> 4 | H21: 24
A24: Fuente: Secretaría del Tribunal Supremo de Elecciones.

Sheet 25
A2: CUADRO 25
A3: COSTA RICA: DONACIONES EN EFECTIVO REPORTADAS ANTE EL TRIBUNAL SUPREMO DE ELECCIONES
A4: SEGÚN PARTIDO POLÍTICO 1/, AL 31 DE DICIEMBRE DE 2018
A5: - Cifras en colones -
A6: PARTIDO POLÍTICO | B6: CICLO PRESIDENCIAL2/ | C6: CICLO MUNICIPAL | D6: OCTUBRE A DICIEMBRE, 2018
C7: PERIODO NO ELECTORAL 2016-2017 3/
A9: TOTAL | B9: =SUM(B11:B44) -> 3258532767 | C9: =SUM(C11:C44) -> 145495667.5 | D9: =SUM(D11:D44) -> 19830839.76
A11: ACCESIBILIDAD SIN EXCLUSION | B11: 78834103.99 | C11: 0 | D11: 0
A12: ACCION CIUDADANA | B12: 133741017.1 | C12: 55485841.11 | D12: 17986492.76
A13: ACTUEMOS YA | B13: 1905000 | C13: 0 | D13: 0
A14: ALIANZA DEMOCRATA CRISTIANA | B14: 15737782.4 | C14: 896937 | D14: 203000
A15: ALIANZA PATRIOTICA | B15: 270000 | C15: 0 | D15: 0
A16: ALIANZA POR SAN JOSE | B16: 22825771.74 | C16: 478467 | D16: 0
A17: ALIANZA SOCIAL POR LA UNION | B17: 101000 | C17: 0 | D17: 0
A18: AUTENTICO LIMONENSE | B18: 4466003.6 | C18: 0 | D18: 0
A19: AUTENTICO SIQUIRREÑO | B19: 625000 | C19: 0 | D19: 0
A20: AVANCE MONTES DE OCA | B20: 2527185 | C20: 0 | D20: 0
A21: CURRIDABAT SIGLO XXI | B21: 6207688.65 | C21: 3361941 | D21: 1103747
A22: DE LOS TRABAJADORES | B22: 2514268.7 | C22: 479089 | D22: 0
A23: DE LOS TRANSPORTISTAS | B23: 1092000 | C23: 0 | D23: 0
A24: ECOLOGICO COMUNAL COSTARRICENSE | B24: 1391647 | C24: 0 | D24: 0
A25: FRENTE AMPLIO | B25: 145561740.8 | C25: 17732872.5 | D25: 0
A26: HUMANISTA DE MONTES DE OCA | B26: 100000 | C26: 0 | D26: 0
A27: INTEGRACION NACIONAL | B27: 37493261.6 | C27: 0 | D27: 0
A28: LIBERACION NACIONAL | B28: 2418281379 | C28: 2879440 | D28: 0
A29: LIBERAL PROGRESISTA | B29: 7244825 | C29: 1198801 | D29: 0
A30: MOVIMIENTO AVANCE SANTO DOMINGO | B30: 2894000 | C30: 0 | D30: 0
A31: MOVIMIENTO LIBERTARIO | B31: 50907473.65 | C31: 0 | D31: 0
A32: NUEVA GENERACION | B32: 34010213.5 | C32: 2055000 | D32: 0
A33: NUEVO PARTIDO SOCIALISTA | B33: 54589 | C33: 0 | D33: 0
A34: RECUPERANDO VALORES | B34: 360000 | C34: 0 | D34: 0
A35: RENOVACION CARTAGO | B35: 700000 | C35: 0 | D35: 0
A36: RENOVACION COSTARRICENSE | B36: 18480451.84 | C36: 0 | D36: 0
A37: RENOVEMOS ALAJUELA | B37: 7584280 | C37: 0 | D37: 0
A38: REPUBLICANO SOCIAL CRISTIANO | B38: 27076315 | C38: 1400970 | D38: 537600
A39: RESTAURACION NACIONAL | B39: 52543445.4 | C39: 56024676.13 | D39: 0
A40: TODO POR FLORES | B40: 400000 | C40: 0 | D40: 0
A41: TODOS | B41: 3851000 | C41: 0 | D41: 0
A42: UNIDAD SOCIAL CRISTIANA | B42: 171212824.4 | C42: 3501632.74 | D42: 0
A43: UNION GUANACASTECA | B43: 450000 | C43: 0 | D43: 0
A44: VAMOS | B44: 7088500 | C44: 0 | D44: 0
A46: Notas:
A47: 1/ El detalle de cada contribuyente se puede consultar en http://www.tse.go.cr/contribuciones_partidos.htm
A48: 2/ El Ciclo Presidencial abarca el periodo comprendido entre el 24 de marzo de 2016 y el 21 de marzo de 2018.
A49: 3/ El Periodo no Electoral del Ciclo Municipal comprende del 22 de marzo de 2018 al 01 de octubre de 2020.
A52: Fuente: Reportes de contribuciones remitidos periódicamente por los partidos políticos al Departamento de Financiamiento de Partidos Políticos.
